Workbook

Sheet Instructions
A1: Workbook Instructions | F1: SANDBOX AREA (highlighted in light red)- For rough work associated with the print area to the left. Rough work may include, notes, calculations, derivations, etc.
A2: Enter information as required in all cells highlighted in Blue.
A3: All cells not highlighted in Blue are locked from editing. Locked cells include: cells with formulas highlighted in Gray or Light Yellow, cells with no color fill (white), etc.
A4: Rules for decimal places on values:
A5: · Budget and Invoice values:
A6: o Rounding of any values, as described below, should be performed using standard rounding practices.
A7: o For all currency rates (e.g., Direct Labor, and Unit Cost): Round to the cent ($0.01).
A8: o For all percentage rates (e.g., Fringe Benefits, Indirect Cost, and Profit): Round to a maximum of two decimal places of a percent (e.g., 25.12%). You can round to less if desired, such as one decimal place (e.g., 25.1%), or zero decimal places (e.g., 25%).
A9: o For all quantity values (e.g., # of hours, # of months, and # of units): Round to a maximum of two decimal places (e.g., 50.12). You can round to less if desired, such as one decimal place (e.g., 50.1), or zero decimal places (e.g., 50).
A10: · Budget values:
A11: o For entered and totaled (via calculation) CEC and Match share budget values: Round to the dollar ($1).
A12: o For all calculated currency values (e.g., rate x hours, rate x months, base amount, and rate x base amount): Round to the dollar ($1).
A13: · Invoice values:
A14: o For entered and totaled (via calculation) CEC and Match share expense invoice values: Round to the cent ($0.01).
A15: o For all calculated currency values (e.g., rate x hours, rate x months, base amount, and rate x base amount): Round to the cent ($0.01).
A16: o SPECIAL CIRCUMSTANCE for calculated currency values: ONLY if a calculated value (e.g., rate x hours = actual labor expense) does NOT equal the actual expense, because of the decimal place rules provided for rates and quantity values listed above, it is acceptable to use as many decimal places as necessary for rates and quantity values listed above to ensure that the calculated value DOES equal the actual expense.
A17: If additional rows are needed within a section, unhide the hidden rows (i.e., select the row directly above and below the hidden rows, then right-click the selection and select “Unhide”). Hide any unused rows. DO NOT USE THE LAST TWO ROWS THAT ARE MARKED “CEC USE ONLY”. If all but the last 2 rows are used, and more rows are required, please contact the ECAMS Support team (ECAMS.Support@energy.ca.gov).
A18: FOR ECAMS SUPPORT TEAM ONLY: To add additional rows and maintain the formulas within the totals, (1) unprotect the sheet, (2) copy the second to the last row in the section, (3) insert the copied row just above the last row, (4) repeat steps 2 - 3 as required, (5) correct formatting and REFERRENCE IDs as required, (6) delete “CEC USE ONLY” from all but the last two rows in the section, and (7) re-protect the sheet.
A19: For support on how to complete this template, please visit the ECAMS Resources web page. The link to this web page is provided in the cell below:
A20: https://www.energy.ca.gov/funding-opportunities/funding-resources/ecams-resources

Sheet Invoice Payment Cover Sheet
A1: Invoice Payment Request | I1: SANDBOX AREA (highlighted in light red)- For rough work associated with the print area to the left. Rough work may include, notes, calculations, derivations, etc.
A3: Insert Company Logo
A5: Physical Address: | C5: Bill To:
A6: Company Name | C6: California Energy Commission
A7: Company Address 1 | C7: Accounting Office, MS-2
A8: Company Address 2 | C8: 1516 Ninth Street
A9: City, State, Zip | C9: Sacramento, CA 95814
A11: Remit Payment To: | C11: Agreement Number: | D11: xxx-xx-xxx
A12: Company Name | C12: Invoice Date: | D12: mm/dd/yyyy
A13: Company Address 1 | C13: Invoice Number: | D13: ABC-YY-###-##
A14: Company Address 2 | C14: Company Tracking Number (optional): | D14: ##########
A15: City, State, Zip | C15: Period Covered by Request: | D15: mm/dd/yyyy - mm/dd/yyyy
A17: Federal Tax ID: | C17: Total to Pay This Invoice: | D17: ='Invoice Summary'!C39 -> 604464.05
A18: ##########
A20: CEC Email Address to Submit Invoices | C20: Funding Source Line Items: | D20: Amount:
A21: invoices@energy.ca.gov | C21: 1. Grant or Loan Progress Payment. Amount Only. | D21: =D17 -> 604464.05
A27: Certification
A28: I certify under penalty of perjury that this invoice is accurate and conforms to the requirements of this agreement. Reimbursement for these costs has not and will not be received from any other sources. I have carefully reviewed the terms and conditions for this agreement and have determined that, for work covered by this invoice, the recipient and all subrecipients have complied with all agreement terms, including the requirement of compliance with public works and prevailing wage laws, which when applicable require, among other things, the payment of prevailing wages to eligible workers. All invoice backup documentation (e.g. receipts, invoices, etc.) is available upon request for any items at any time. All invoiced amounts, including indirect cost rates, are for actual and allowable expenditures under this agreement.
A33: Signature of Authorized Representative | B33: Date
A34: Insert Printed Name/Title
A36: For Energy Commission Use Only
A41: CEC Reviewer Signature | B41: Date
A43: Fi$Cal Purchase Order Number (CGL completes):
A44: Fi$Cal Receipt Number (CGL completes):
A45: Fi$Cal Voucher Number (Accounting completes as-needed):

Sheet Invoice Summary
A1: Energy Commission Grant Invoice Summary by Category Budget | K1: SANDBOX AREA (highlighted in light red)- For rough work associated with the print area to the left. Rough work may include, notes, calculations, derivations, etc.
A3: Company Name: | C3: ='Invoice Payment Cover Sheet'!A6 -> Company Name
A4: Agreement Number: | C4: ='Invoice Payment Cover Sheet'!D11 -> xxx-xx-xxx
A5: Invoice Date: | C5: ='Invoice Payment Cover Sheet'!D12 -> mm/dd/yyyy
A6: Invoice Number: | C6: ='Invoice Payment Cover Sheet'!D13 -> ABC-YY-###-##
A7: Company Tracking Number (optional): | C7: =IF('Invoice Payment Cover Sheet'!D14="","",'Invoice Payment Cover Sheet'!D14) -> ##########
A8: Period Covered by this Request: | C8: ='Invoice Payment Cover Sheet'!D15 -> mm/dd/yyyy - mm/dd/yyyy
A9: Retention Method: | B9: Select a Retention Method
A11: CEC Reimbursable Summary
A12: Category | B12: Agreement Reimbursable Budget | C12: Reimbursable Expenses This Period | D12: Cumulative Expenses Billed to Date | E12: % of Reimbursable Spent to Date | F12: Reimbursable Balance
A13: Direct Labor | B13: 320500 | C13: 10972.9 | D13: =10972.9+29346.28 -> 40319.18 | E13: =IF($B13=0,0,ROUND($D13,2)/ROUND($B13,0)) -> 0.1258008736 | F13: =B13-D13 -> 280180.82
A14: Fringe Benefits | B14: 179250 | C14: 4609.76 | D14: =4609.75+5976.23 -> 10585.98 | E14: =IF($B14=0,0,ROUND($D14,2)/ROUND($B14,0)) -> 0.05905707113 | F14: =B14-D14 -> 168664.02
A15: Travel | B15: 500 | C15: 78.63 | D15: =78.63+29.25 -> 107.88 | E15: 0.21576 | F15: 392.12
A16: Equipment | B16: 657000 | C16: =Equipment!I207 -> 529553.89 | D16: =529553.89+15367.16 -> 544921.05 | E16: 0.8294079909 | F16: 112078.95
A17: Materials/Misc. | B17: 35000 | C17: ='Materials & Miscellaneous'!I207 -> 29658.62 | D17: =29658.62+3216.59 -> 32875.21 | E17: 0.9392917143 | F17: 2124.79
A18: Subs/Vendors | B18: ='Subs & Vendors'!D215 -> 101000 | C18: ='Subs & Vendors'!E215 -> 21875.33 | D18: ='Subs & Vendors'!F215 -> 32740.46 | E18: 0.3241629703 | F18: 68259.54
A19: Indirect Costs | B19: 117051 | C19: 6156.65 | D19: =6156.65+7613.81 -> 13770.46 | E19: 0.1176449582 | F19: 103280.54
A20: Profit | B20: 49975 | C20: 1558.27 | D20: =1558.27+2364.17 -> 3922.44 | E20: 0.07848804402 | F20: 46052.56
A21: Total | B21: =SUM(ROUND(B13:B20,0)) -> 1460276 | C21: =SUM(C13:C20) -> 604464.05 | D21: =SUM(ROUND(D13:D20,2)) -> 679242.66 | E21: 0.4651467668 | F21: 781033.34
A23: Match Share Summary
A24: Category | B24: Agreement Match Share Budget | C24: Match Share Expenses This Period | D24: Cumulative Match Share Spent to Date | E24: % of Match Spent to Date | F24: Match Balance
A25: Direct Labor | B25: 8000 | C25: 2000 | D25: =2000+256 -> 2256 | E25: =IF($B25=0,0,ROUND($D25,2)/ROUND($B25,0)) -> 0.282 | F25: =B25-D25 -> 5744
A26: Fringe Benefits | B26: 28000 | C26: 600 | D26: =600+6423 -> 7023 | E26: 0.2508214286 | F26: 20977
A27: Travel | B27: 200 | C27: 21.56 | D27: =21.56+26.49 -> 48.05 | E27: 0.24025 | F27: 151.95
A28: Equipment | B28: 58000 | C28: =Equipment!J207 -> 54452.57 | D28: =54452.57 -> 54452.57 | E28: 0.9388374138 | F28: 3547.43
A29: Materials/Misc. | B29: 10000 | C29: ='Materials & Miscellaneous'!J207 -> 7164.05 | D29: =7164.05+1238.19 -> 8402.24 | E29: 0.840224 | F29: 1597.76
A30: Subs/Vendors | B30: ='Subs & Vendors'!D216 -> 71000 | C30: ='Subs & Vendors'!E216 -> 14298.83 | D30: ='Subs & Vendors'!F216 -> 17669.85 | E30: 0.2488711268 | F30: 53330.15
A31: Indirect Costs | B31: 8040 | C31: 1640.09 | D31: =1640.09+1749.23 -> 3389.32 | E31: 0.4215572139 | F31: 4650.68
A32: Profit | B32: 3600 | C32: 260 | D32: =260+400 -> 660 | E32: 0.1833333333 | F32: 2940
A33: Total | B33: =SUM(ROUND(B25:B32,0)) -> 186840 | C33: =SUM(C25:C32) -> 80437.1 | D33: =SUM(ROUND(D25:D32,2)) -> 93901.03 | E33: 0.5025745558 | F33: 92938.97
A35: Grand Totals | B35: =B21+B33 -> 1647116 | C35: =C21+C33 -> 684901.15 | D35: =D21+D33 -> 773143.69 | E35: 0.4693923743 | F35: =B35-D35 -> 873972.31
A37: Reimbursement Total This Period: | C37: =C21 -> 604464.05 | D37: Retention Release Invoice: | F37: Select Yes or No
A38: Retention Amount: | C38: =IF($B$9="Retention is NOT required to be withheld for this agreement",0,IF($B$9="Retention will be withheld from each invoice (minus exempt subrecipients)",ROUND(($C$37-'Subs & Vendors'!$I$105)*0.1,2),IF(AND($B$9="Retention will be withheld at the end of the agreement (minus exempt subrecipients)",$D$40="90.00%, or less, of CEC funds spent to date (minus exempt subrecipients), including this invoice"),0,IF(AND($B$9="Retention will be withheld at the end of the agreement (minus exempt subrecipients)",$D$40="With this invoice, percentage of CEC funds spent (minus exempt subrecipients) will transition from less than to greater than 90.00% [manually enter required retention amount below]"),ROUND($F$41,2),IF(AND($B$9="Retention will be withheld at the end of the agreement (minus exempt subrecipients)",$D$40="More than 90.00% of CEC funds spent to date (minus exempt subrecipients), including this entire invoice"),ROUND($C$37-'Subs & Vendors'!$I$105,2),0))))) -> 0 | D38: Retention Release Amount: | F38: 0
A39: Total To Be Paid This Invoice: | C39: =ROUND(C37,2)-ROUND(C38,2) -> 604464.05 | D39: Final Invoice: | F39: Select Yes or No
D40: If Applicable: Select End of Agreement Retention Method Situation
A41: Match Amount This Period: | C41: =C33 -> 80437.1 | D41: Manual Entry Retention Amount: | F41: 1000

Sheet Equipment
A1: INVOICE | R1: SANDBOX AREA (highlighted in light red)- For rough work associated with the print area to the left. Rough work may include, notes, calculations, derivations, etc.
A2: EQUIPMENT
A3: Budget Worksheet Reference ID | B3: Task # | C3: Legal Name of entity providing equipment: Recipient/ Subrecipient/ Vendor | D3: Description | E3: Purpose | F3: # of Units Billed/Match | G3: Unit Cost Billed/Match This Period ($) | H3: Total: # of Units x Unit Cost | I3: Billed CEC Expenses | J3: Match Share Expenses | K3: Total | L3: Use If Requesting Payment for Incurred Costs or Reimbursement for Partial Payments
L4: Check Box if Expense is a Partial Payment | M4: Provide payment amount(s) and CEC invoice number(s) for prior payment(s)
A5: E-1 | B5: 4 | C5: M&M Inc. | D5: Equipment Type A | E5: Needed to help complete project | F5: 5 | G5: 27697.45 | H5: =ROUND(F5*G5,2) -> 138487.25 | I5: =H5-100000-25000 -> 13487.25 | J5: 25000 | K5: =SUM(ROUND(I5:J5,2)) -> 38487.25 | M5: $100,000 on invoice 9
A6: E-2 | B6: 2 | C6: Equipment Inc. | D6: Equipment Type B | E6: Needed to help complete project | F6: 11 | G6: 48239.11 | H6: =ROUND(F6*G6,2) -> 530630.21 | I6: =530630.21-21563.57 -> 509066.64 | J6: 21563.57 | K6: =SUM(ROUND(I6:J6,2)) -> 530630.21
A7: E-3 | B7: 2 | C7: Equipment Inc. | D7: Equipment Type C | E7: Needed to help complete project | F7: 3 | G7: 4963 | H7: 14889 | I7: 7000 | J7: =H7-7000 -> 7889 | K7: =SUM(ROUND(I7:J7,2)) -> 14889
F8: 0 | G8: 0 | H8: 0 | I8: 0 | J8: 0 | K8: =SUM(ROUND(I8:J8,2)) -> 0
F9: 0 | G9: 0 | H9: 0 | I9: 0 | J9: 0 | K9: =SUM(ROUND(I9:J9,2)) -> 0
F10: 0 | G10: 0 | H10: 0 | I10: 0 | J10: 0 | K10: =SUM(ROUND(I10:J10,2)) -> 0
F11: 0 | G11: 0 | H11: 0 | I11: 0 | J11: 0 | K11: =SUM(ROUND(I11:J11,2)) -> 0
F12: 0 | G12: 0 | H12: 0 | I12: 0 | J12: 0 | K12: =SUM(ROUND(I12:J12,2)) -> 0
F13: 0 | G13: 0 | H13: 0 | I13: 0 | J13: 0 | K13: =SUM(ROUND(I13:J13,2)) -> 0
F14: 0 | G14: 0 | H14: 0 | I14: 0 | J14: 0 | K14: =SUM(ROUND(I14:J14,2)) -> 0
F15: 0 | G15: 0 | H15: 0 | I15: 0 | J15: 0 | K15: =SUM(ROUND(I15:J15,2)) -> 0
F16: 0 | G16: 0 | H16: 0 | I16: 0 | J16: 0 | K16: =SUM(ROUND(I16:J16,2)) -> 0
F17: 0 | G17: 0 | H17: 0 | I17: 0 | J17: 0 | K17: =SUM(ROUND(I17:J17,2)) -> 0
F18: 0 | G18: 0 | H18: 0 | I18: 0 | J18: 0 | K18: =SUM(ROUND(I18:J18,2)) -> 0
F19: 0 | G19: 0 | H19: 0 | I19: 0 | J19: 0 | K19: =SUM(ROUND(I19:J19,2)) -> 0
F20: 0 | G20: 0 | H20: 0 | I20: 0 | J20: 0 | K20: =SUM(ROUND(I20:J20,2)) -> 0
F21: 0 | G21: 0 | H21: 0 | I21: 0 | J21: 0 | K21: =SUM(ROUND(I21:J21,2)) -> 0
F22: 0 | G22: 0 | H22: 0 | I22: 0 | J22: 0 | K22: =SUM(ROUND(I22:J22,2)) -> 0
F23: 0 | G23: 0 | H23: 0 | I23: 0 | J23: 0 | K23: =SUM(ROUND(I23:J23,2)) -> 0
F24: 0 | G24: 0 | H24: =ROUND(F24*G24,2) -> 0 | I24: 0 | J24: 0 | K24: =SUM(ROUND(I24:J24,2)) -> 0
F25: 0 | G25: 0 | H25: 0 | I25: 0 | J25: 0 | K25: =SUM(ROUND(I25:J25,2)) -> 0
F26: 0 | G26: 0 | H26: 0 | I26: 0 | J26: 0 | K26: =SUM(ROUND(I26:J26,2)) -> 0
F27: 0 | G27: 0 | H27: 0 | I27: 0 | J27: 0 | K27: =SUM(ROUND(I27:J27,2)) -> 0
F28: 0 | G28: 0 | H28: 0 | I28: 0 | J28: 0 | K28: =SUM(ROUND(I28:J28,2)) -> 0
F29: 0 | G29: 0 | H29: 0 | I29: 0 | J29: 0 | K29: =SUM(ROUND(I29:J29,2)) -> 0
F30: 0 | G30: 0 | H30: 0 | I30: 0 | J30: 0 | K30: =SUM(ROUND(I30:J30,2)) -> 0
F31: 0 | G31: 0 | H31: 0 | I31: 0 | J31: 0 | K31: =SUM(ROUND(I31:J31,2)) -> 0
F32: 0 | G32: 0 | H32: 0 | I32: 0 | J32: 0 | K32: =SUM(ROUND(I32:J32,2)) -> 0
F33: 0 | G33: 0 | H33: 0 | I33: 0 | J33: 0 | K33: =SUM(ROUND(I33:J33,2)) -> 0
F34: 0 | G34: 0 | H34: 0 | I34: 0 | J34: 0 | K34: =SUM(ROUND(I34:J34,2)) -> 0
F35: 0 | G35: 0 | H35: 0 | I35: 0 | J35: 0 | K35: =SUM(ROUND(I35:J35,2)) -> 0
F36: 0 | G36: 0 | H36: 0 | I36: 0 | J36: 0 | K36: =SUM(ROUND(I36:J36,2)) -> 0
F37: 0 | G37: 0 | H37: 0 | I37: 0 | J37: 0 | K37: =SUM(ROUND(I37:J37,2)) -> 0
F38: 0 | G38: 0 | H38: 0 | I38: 0 | J38: 0 | K38: =SUM(ROUND(I38:J38,2)) -> 0
F39: 0 | G39: 0 | H39: 0 | I39: 0 | J39: 0 | K39: =SUM(ROUND(I39:J39,2)) -> 0
F40: 0 | G40: 0 | H40: 0 | I40: 0 | J40: 0 | K40: =SUM(ROUND(I40:J40,2)) -> 0
F41: 0 | G41: 0 | H41: 0 | I41: 0 | J41: 0 | K41: =SUM(ROUND(I41:J41,2)) -> 0
F42: 0 | G42: 0 | H42: 0 | I42: 0 | J42: 0 | K42: =SUM(ROUND(I42:J42,2)) -> 0
F43: 0 | G43: 0 | H43: 0 | I43: 0 | J43: 0 | K43: =SUM(ROUND(I43:J43,2)) -> 0
F44: 0 | G44: 0 | H44: 0 | I44: 0 | J44: 0 | K44: =SUM(ROUND(I44:J44,2)) -> 0
F45: 0 | G45: 0 | H45: 0 | I45: 0 | J45: 0 | K45: =SUM(ROUND(I45:J45,2)) -> 0
F46: 0 | G46: 0 | H46: =ROUND(F46*G46,2) -> 0 | I46: 0 | J46: 0 | K46: =SUM(ROUND(I46:J46,2)) -> 0
F47: 0 | G47: 0 | H47: 0 | I47: 0 | J47: 0 | K47: =SUM(ROUND(I47:J47,2)) -> 0
F48: 0 | G48: 0 | H48: 0 | I48: 0 | J48: 0 | K48: =SUM(ROUND(I48:J48,2)) -> 0
F49: 0 | G49: 0 | H49: 0 | I49: 0 | J49: 0 | K49: =SUM(ROUND(I49:J49,2)) -> 0
F50: 0 | G50: 0 | H50: 0 | I50: 0 | J50: 0 | K50: =SUM(ROUND(I50:J50,2)) -> 0
F51: 0 | G51: 0 | H51: 0 | I51: 0 | J51: 0 | K51: =SUM(ROUND(I51:J51,2)) -> 0
F52: 0 | G52: 0 | H52: 0 | I52: 0 | J52: 0 | K52: =SUM(ROUND(I52:J52,2)) -> 0
F53: 0 | G53: 0 | H53: 0 | I53: 0 | J53: 0 | K53: =SUM(ROUND(I53:J53,2)) -> 0
F54: 0 | G54: 0 | H54: 0 | I54: 0 | J54: 0 | K54: =SUM(ROUND(I54:J54,2)) -> 0
F55: 0 | G55: 0 | H55: 0 | I55: 0 | J55: 0 | K55: =SUM(ROUND(I55:J55,2)) -> 0
F56: 0 | G56: 0 | H56: 0 | I56: 0 | J56: 0 | K56: =SUM(ROUND(I56:J56,2)) -> 0
F57: 0 | G57: 0 | H57: 0 | I57: 0 | J57: 0 | K57: =SUM(ROUND(I57:J57,2)) -> 0
F58: 0 | G58: 0 | H58: 0 | I58: 0 | J58: 0 | K58: =SUM(ROUND(I58:J58,2)) -> 0
F59: 0 | G59: 0 | H59: 0 | I59: 0 | J59: 0 | K59: =SUM(ROUND(I59:J59,2)) -> 0
F60: 0 | G60: 0 | H60: 0 | I60: 0 | J60: 0 | K60: =SUM(ROUND(I60:J60,2)) -> 0
F61: 0 | G61: 0 | H61: 0 | I61: 0 | J61: 0 | K61: =SUM(ROUND(I61:J61,2)) -> 0
F62: 0 | G62: 0 | H62: 0 | I62: 0 | J62: 0 | K62: =SUM(ROUND(I62:J62,2)) -> 0
F63: 0 | G63: 0 | H63: 0 | I63: 0 | J63: 0 | K63: =SUM(ROUND(I63:J63,2)) -> 0
F64: 0 | G64: 0 | H64: 0 | I64: 0 | J64: 0 | K64: =SUM(ROUND(I64:J64,2)) -> 0
F65: 0 | G65: 0 | H65: 0 | I65: 0 | J65: 0 | K65: =SUM(ROUND(I65:J65,2)) -> 0
F66: 0 | G66: 0 | H66: 0 | I66: 0 | J66: 0 | K66: =SUM(ROUND(I66:J66,2)) -> 0
F67: 0 | G67: 0 | H67: 0 | I67: 0 | J67: 0 | K67: =SUM(ROUND(I67:J67,2)) -> 0
F68: 0 | G68: 0 | H68: 0 | I68: 0 | J68: 0 | K68: =SUM(ROUND(I68:J68,2)) -> 0
F69: 0 | G69: 0 | H69: 0 | I69: 0 | J69: 0 | K69: =SUM(ROUND(I69:J69,2)) -> 0
F70: 0 | G70: 0 | H70: 0 | I70: 0 | J70: 0 | K70: =SUM(ROUND(I70:J70,2)) -> 0
F71: 0 | G71: 0 | H71: 0 | I71: 0 | J71: 0 | K71: =SUM(ROUND(I71:J71,2)) -> 0
F72: 0 | G72: 0 | H72: 0 | I72: 0 | J72: 0 | K72: =SUM(ROUND(I72:J72,2)) -> 0
F73: 0 | G73: 0 | H73: 0 | I73: 0 | J73: 0 | K73: =SUM(ROUND(I73:J73,2)) -> 0
F74: 0 | G74: 0 | H74: 0 | I74: 0 | J74: 0 | K74: =SUM(ROUND(I74:J74,2)) -> 0
F75: 0 | G75: 0 | H75: 0 | I75: 0 | J75: 0 | K75: =SUM(ROUND(I75:J75,2)) -> 0
F76: 0 | G76: 0 | H76: 0 | I76: 0 | J76: 0 | K76: =SUM(ROUND(I76:J76,2)) -> 0
F77: 0 | G77: 0 | H77: 0 | I77: 0 | J77: 0 | K77: =SUM(ROUND(I77:J77,2)) -> 0
F78: 0 | G78: 0 | H78: 0 | I78: 0 | J78: 0 | K78: =SUM(ROUND(I78:J78,2)) -> 0
F79: 0 | G79: 0 | H79: 0 | I79: 0 | J79: 0 | K79: =SUM(ROUND(I79:J79,2)) -> 0
F80: 0 | G80: 0 | H80: 0 | I80: 0 | J80: 0 | K80: =SUM(ROUND(I80:J80,2)) -> 0
F81: 0 | G81: 0 | H81: 0 | I81: 0 | J81: 0 | K81: =SUM(ROUND(I81:J81,2)) -> 0
F82: 0 | G82: 0 | H82: 0 | I82: 0 | J82: 0 | K82: =SUM(ROUND(I82:J82,2)) -> 0
F83: 0 | G83: 0 | H83: 0 | I83: 0 | J83: 0 | K83: =SUM(ROUND(I83:J83,2)) -> 0
F84: 0 | G84: 0 | H84: 0 | I84: 0 | J84: 0 | K84: =SUM(ROUND(I84:J84,2)) -> 0
F85: 0 | G85: 0 | H85: 0 | I85: 0 | J85: 0 | K85: =SUM(ROUND(I85:J85,2)) -> 0
F86: 0 | G86: 0 | H86: 0 | I86: 0 | J86: 0 | K86: =SUM(ROUND(I86:J86,2)) -> 0
F87: 0 | G87: 0 | H87: 0 | I87: 0 | J87: 0 | K87: =SUM(ROUND(I87:J87,2)) -> 0
F88: 0 | G88: 0 | H88: 0 | I88: 0 | J88: 0 | K88: =SUM(ROUND(I88:J88,2)) -> 0
F89: 0 | G89: 0 | H89: 0 | I89: 0 | J89: 0 | K89: =SUM(ROUND(I89:J89,2)) -> 0
F90: 0 | G90: 0 | H90: =ROUND(F90*G90,2) -> 0 | I90: 0 | J90: 0 | K90: =SUM(ROUND(I90:J90,2)) -> 0
F91: 0 | G91: 0 | H91: 0 | I91: 0 | J91: 0 | K91: =SUM(ROUND(I91:J91,2)) -> 0
F92: 0 | G92: 0 | H92: 0 | I92: 0 | J92: 0 | K92: =SUM(ROUND(I92:J92,2)) -> 0
F93: 0 | G93: 0 | H93: 0 | I93: 0 | J93: 0 | K93: =SUM(ROUND(I93:J93,2)) -> 0
F94: 0 | G94: 0 | H94: 0 | I94: 0 | J94: 0 | K94: =SUM(ROUND(I94:J94,2)) -> 0
F95: 0 | G95: 0 | H95: 0 | I95: 0 | J95: 0 | K95: =SUM(ROUND(I95:J95,2)) -> 0
F96: 0 | G96: 0 | H96: 0 | I96: 0 | J96: 0 | K96: =SUM(ROUND(I96:J96,2)) -> 0
F97: 0 | G97: 0 | H97: 0 | I97: 0 | J97: 0 | K97: =SUM(ROUND(I97:J97,2)) -> 0
F98: 0 | G98: 0 | H98: 0 | I98: 0 | J98: 0 | K98: =SUM(ROUND(I98:J98,2)) -> 0
F99: 0 | G99: 0 | H99: 0 | I99: 0 | J99: 0 | K99: =SUM(ROUND(I99:J99,2)) -> 0
F100: 0 | G100: 0 | H100: 0 | I100: 0 | J100: 0 | K100: =SUM(ROUND(I100:J100,2)) -> 0
F101: 0 | G101: 0 | H101: 0 | I101: 0 | J101: 0 | K101: =SUM(ROUND(I101:J101,2)) -> 0
F102: 0 | G102: 0 | H102: 0 | I102: 0 | J102: 0 | K102: =SUM(ROUND(I102:J102,2)) -> 0
F103: 0 | G103: 0 | H103: 0 | I103: 0 | J103: 0 | K103: =SUM(ROUND(I103:J103,2)) -> 0
F104: 0 | G104: 0 | H104: 0 | I104: 0 | J104: 0 | K104: =SUM(ROUND(I104:J104,2)) -> 0
F105: 0 | G105: 0 | H105: 0 | I105: 0 | J105: 0 | K105: =SUM(ROUND(I105:J105,2)) -> 0
F106: 0 | G106: 0 | H106: 0 | I106: 0 | J106: 0 | K106: =SUM(ROUND(I106:J106,2)) -> 0
F107: 0 | G107: 0 | H107: 0 | I107: 0 | J107: 0 | K107: =SUM(ROUND(I107:J107,2)) -> 0
F108: 0 | G108: 0 | H108: 0 | I108: 0 | J108: 0 | K108: =SUM(ROUND(I108:J108,2)) -> 0
F109: 0 | G109: 0 | H109: 0 | I109: 0 | J109: 0 | K109: =SUM(ROUND(I109:J109,2)) -> 0
F110: 0 | G110: 0 | H110: 0 | I110: 0 | J110: 0 | K110: =SUM(ROUND(I110:J110,2)) -> 0
F111: 0 | G111: 0 | H111: 0 | I111: 0 | J111: 0 | K111: =SUM(ROUND(I111:J111,2)) -> 0
F112: 0 | G112: 0 | H112: 0 | I112: 0 | J112: 0 | K112: =SUM(ROUND(I112:J112,2)) -> 0
F113: 0 | G113: 0 | H113: 0 | I113: 0 | J113: 0 | K113: =SUM(ROUND(I113:J113,2)) -> 0
F114: 0 | G114: 0 | H114: 0 | I114: 0 | J114: 0 | K114: =SUM(ROUND(I114:J114,2)) -> 0
F115: 0 | G115: 0 | H115: 0 | I115: 0 | J115: 0 | K115: =SUM(ROUND(I115:J115,2)) -> 0
F116: 0 | G116: 0 | H116: 0 | I116: 0 | J116: 0 | K116: =SUM(ROUND(I116:J116,2)) -> 0
F117: 0 | G117: 0 | H117: 0 | I117: 0 | J117: 0 | K117: =SUM(ROUND(I117:J117,2)) -> 0
F118: 0 | G118: 0 | H118: 0 | I118: 0 | J118: 0 | K118: =SUM(ROUND(I118:J118,2)) -> 0
F119: 0 | G119: 0 | H119: 0 | I119: 0 | J119: 0 | K119: =SUM(ROUND(I119:J119,2)) -> 0
F120: 0 | G120: 0 | H120: 0 | I120: 0 | J120: 0 | K120: =SUM(ROUND(I120:J120,2)) -> 0
F121: 0 | G121: 0 | H121: 0 | I121: 0 | J121: 0 | K121: =SUM(ROUND(I121:J121,2)) -> 0
F122: 0 | G122: 0 | H122: 0 | I122: 0 | J122: 0 | K122: =SUM(ROUND(I122:J122,2)) -> 0
F123: 0 | G123: 0 | H123: 0 | I123: 0 | J123: 0 | K123: =SUM(ROUND(I123:J123,2)) -> 0
F124: 0 | G124: 0 | H124: 0 | I124: 0 | J124: 0 | K124: =SUM(ROUND(I124:J124,2)) -> 0
F125: 0 | G125: 0 | H125: 0 | I125: 0 | J125: 0 | K125: =SUM(ROUND(I125:J125,2)) -> 0
F126: 0 | G126: 0 | H126: 0 | I126: 0 | J126: 0 | K126: =SUM(ROUND(I126:J126,2)) -> 0
F127: 0 | G127: 0 | H127: 0 | I127: 0 | J127: 0 | K127: =SUM(ROUND(I127:J127,2)) -> 0
F128: 0 | G128: 0 | H128: 0 | I128: 0 | J128: 0 | K128: =SUM(ROUND(I128:J128,2)) -> 0
F129: 0 | G129: 0 | H129: 0 | I129: 0 | J129: 0 | K129: =SUM(ROUND(I129:J129,2)) -> 0
F130: 0 | G130: 0 | H130: 0 | I130: 0 | J130: 0 | K130: =SUM(ROUND(I130:J130,2)) -> 0
F131: 0 | G131: 0 | H131: 0 | I131: 0 | J131: 0 | K131: =SUM(ROUND(I131:J131,2)) -> 0
F132: 0 | G132: 0 | H132: 0 | I132: 0 | J132: 0 | K132: =SUM(ROUND(I132:J132,2)) -> 0
F133: 0 | G133: 0 | H133: 0 | I133: 0 | J133: 0 | K133: =SUM(ROUND(I133:J133,2)) -> 0
F134: 0 | G134: 0 | H134: 0 | I134: 0 | J134: 0 | K134: =SUM(ROUND(I134:J134,2)) -> 0
F135: 0 | G135: 0 | H135: 0 | I135: 0 | J135: 0 | K135: =SUM(ROUND(I135:J135,2)) -> 0
F136: 0 | G136: 0 | H136: 0 | I136: 0 | J136: 0 | K136: =SUM(ROUND(I136:J136,2)) -> 0
F137: 0 | G137: 0 | H137: 0 | I137: 0 | J137: 0 | K137: =SUM(ROUND(I137:J137,2)) -> 0
F138: 0 | G138: 0 | H138: 0 | I138: 0 | J138: 0 | K138: =SUM(ROUND(I138:J138,2)) -> 0
F139: 0 | G139: 0 | H139: 0 | I139: 0 | J139: 0 | K139: =SUM(ROUND(I139:J139,2)) -> 0
F140: 0 | G140: 0 | H140: 0 | I140: 0 | J140: 0 | K140: =SUM(ROUND(I140:J140,2)) -> 0
F141: 0 | G141: 0 | H141: 0 | I141: 0 | J141: 0 | K141: =SUM(ROUND(I141:J141,2)) -> 0
F142: 0 | G142: 0 | H142: 0 | I142: 0 | J142: 0 | K142: =SUM(ROUND(I142:J142,2)) -> 0
F143: 0 | G143: 0 | H143: 0 | I143: 0 | J143: 0 | K143: =SUM(ROUND(I143:J143,2)) -> 0
F144: 0 | G144: 0 | H144: 0 | I144: 0 | J144: 0 | K144: =SUM(ROUND(I144:J144,2)) -> 0
F145: 0 | G145: 0 | H145: 0 | I145: 0 | J145: 0 | K145: =SUM(ROUND(I145:J145,2)) -> 0
F146: 0 | G146: 0 | H146: 0 | I146: 0 | J146: 0 | K146: =SUM(ROUND(I146:J146,2)) -> 0
F147: 0 | G147: 0 | H147: 0 | I147: 0 | J147: 0 | K147: =SUM(ROUND(I147:J147,2)) -> 0
F148: 0 | G148: 0 | H148: 0 | I148: 0 | J148: 0 | K148: =SUM(ROUND(I148:J148,2)) -> 0
F149: 0 | G149: 0 | H149: 0 | I149: 0 | J149: 0 | K149: =SUM(ROUND(I149:J149,2)) -> 0
F150: 0 | G150: 0 | H150: 0 | I150: 0 | J150: 0 | K150: =SUM(ROUND(I150:J150,2)) -> 0
F151: 0 | G151: 0 | H151: 0 | I151: 0 | J151: 0 | K151: =SUM(ROUND(I151:J151,2)) -> 0
F152: 0 | G152: 0 | H152: 0 | I152: 0 | J152: 0 | K152: =SUM(ROUND(I152:J152,2)) -> 0
F153: 0 | G153: 0 | H153: 0 | I153: 0 | J153: 0 | K153: =SUM(ROUND(I153:J153,2)) -> 0
F154: 0 | G154: 0 | H154: =ROUND(F154*G154,2) -> 0 | I154: 0 | J154: 0 | K154: =SUM(ROUND(I154:J154,2)) -> 0
F155: 0 | G155: 0 | H155: 0 | I155: 0 | J155: 0 | K155: =SUM(ROUND(I155:J155,2)) -> 0
F156: 0 | G156: 0 | H156: 0 | I156: 0 | J156: 0 | K156: =SUM(ROUND(I156:J156,2)) -> 0
F157: 0 | G157: 0 | H157: 0 | I157: 0 | J157: 0 | K157: =SUM(ROUND(I157:J157,2)) -> 0
F158: 0 | G158: 0 | H158: 0 | I158: 0 | J158: 0 | K158: =SUM(ROUND(I158:J158,2)) -> 0
F159: 0 | G159: 0 | H159: 0 | I159: 0 | J159: 0 | K159: =SUM(ROUND(I159:J159,2)) -> 0
F160: 0 | G160: 0 | H160: 0 | I160: 0 | J160: 0 | K160: =SUM(ROUND(I160:J160,2)) -> 0
F161: 0 | G161: 0 | H161: 0 | I161: 0 | J161: 0 | K161: =SUM(ROUND(I161:J161,2)) -> 0
F162: 0 | G162: 0 | H162: 0 | I162: 0 | J162: 0 | K162: =SUM(ROUND(I162:J162,2)) -> 0
F163: 0 | G163: 0 | H163: 0 | I163: 0 | J163: 0 | K163: =SUM(ROUND(I163:J163,2)) -> 0
F164: 0 | G164: 0 | H164: 0 | I164: 0 | J164: 0 | K164: =SUM(ROUND(I164:J164,2)) -> 0
F165: 0 | G165: 0 | H165: 0 | I165: 0 | J165: 0 | K165: =SUM(ROUND(I165:J165,2)) -> 0
F166: 0 | G166: 0 | H166: 0 | I166: 0 | J166: 0 | K166: =SUM(ROUND(I166:J166,2)) -> 0
F167: 0 | G167: 0 | H167: 0 | I167: 0 | J167: 0 | K167: =SUM(ROUND(I167:J167,2)) -> 0
F168: 0 | G168: 0 | H168: 0 | I168: 0 | J168: 0 | K168: =SUM(ROUND(I168:J168,2)) -> 0
F169: 0 | G169: 0 | H169: 0 | I169: 0 | J169: 0 | K169: =SUM(ROUND(I169:J169,2)) -> 0
F170: 0 | G170: 0 | H170: 0 | I170: 0 | J170: 0 | K170: =SUM(ROUND(I170:J170,2)) -> 0
F171: 0 | G171: 0 | H171: 0 | I171: 0 | J171: 0 | K171: =SUM(ROUND(I171:J171,2)) -> 0
F172: 0 | G172: 0 | H172: 0 | I172: 0 | J172: 0 | K172: =SUM(ROUND(I172:J172,2)) -> 0
F173: 0 | G173: 0 | H173: 0 | I173: 0 | J173: 0 | K173: =SUM(ROUND(I173:J173,2)) -> 0
F174: 0 | G174: 0 | H174: 0 | I174: 0 | J174: 0 | K174: =SUM(ROUND(I174:J174,2)) -> 0
F175: 0 | G175: 0 | H175: 0 | I175: 0 | J175: 0 | K175: =SUM(ROUND(I175:J175,2)) -> 0
F176: 0 | G176: 0 | H176: 0 | I176: 0 | J176: 0 | K176: =SUM(ROUND(I176:J176,2)) -> 0
F177: 0 | G177: 0 | H177: 0 | I177: 0 | J177: 0 | K177: =SUM(ROUND(I177:J177,2)) -> 0
F178: 0 | G178: 0 | H178: 0 | I178: 0 | J178: 0 | K178: =SUM(ROUND(I178:J178,2)) -> 0
F179: 0 | G179: 0 | H179: 0 | I179: 0 | J179: 0 | K179: =SUM(ROUND(I179:J179,2)) -> 0
F180: 0 | G180: 0 | H180: 0 | I180: 0 | J180: 0 | K180: =SUM(ROUND(I180:J180,2)) -> 0
F181: 0 | G181: 0 | H181: 0 | I181: 0 | J181: 0 | K181: =SUM(ROUND(I181:J181,2)) -> 0
F182: 0 | G182: 0 | H182: 0 | I182: 0 | J182: 0 | K182: =SUM(ROUND(I182:J182,2)) -> 0
F183: 0 | G183: 0 | H183: 0 | I183: 0 | J183: 0 | K183: =SUM(ROUND(I183:J183,2)) -> 0
F184: 0 | G184: 0 | H184: 0 | I184: 0 | J184: 0 | K184: =SUM(ROUND(I184:J184,2)) -> 0
F185: 0 | G185: 0 | H185: 0 | I185: 0 | J185: 0 | K185: =SUM(ROUND(I185:J185,2)) -> 0
F186: 0 | G186: 0 | H186: 0 | I186: 0 | J186: 0 | K186: =SUM(ROUND(I186:J186,2)) -> 0
F187: 0 | G187: 0 | H187: 0 | I187: 0 | J187: 0 | K187: =SUM(ROUND(I187:J187,2)) -> 0
F188: 0 | G188: 0 | H188: 0 | I188: 0 | J188: 0 | K188: =SUM(ROUND(I188:J188,2)) -> 0
F189: 0 | G189: 0 | H189: 0 | I189: 0 | J189: 0 | K189: =SUM(ROUND(I189:J189,2)) -> 0
F190: 0 | G190: 0 | H190: 0 | I190: 0 | J190: 0 | K190: =SUM(ROUND(I190:J190,2)) -> 0
F191: 0 | G191: 0 | H191: =ROUND(F191*G191,2) -> 0 | I191: 0 | J191: 0 | K191: =SUM(ROUND(I191:J191,2)) -> 0
F192: 0 | G192: 0 | H192: 0 | I192: 0 | J192: 0 | K192: =SUM(ROUND(I192:J192,2)) -> 0
F193: 0 | G193: 0 | H193: 0 | I193: 0 | J193: 0 | K193: =SUM(ROUND(I193:J193,2)) -> 0
F194: 0 | G194: 0 | H194: 0 | I194: 0 | J194: 0 | K194: =SUM(ROUND(I194:J194,2)) -> 0
F195: 0 | G195: 0 | H195: 0 | I195: 0 | J195: 0 | K195: =SUM(ROUND(I195:J195,2)) -> 0
F196: 0 | G196: 0 | H196: 0 | I196: 0 | J196: 0 | K196: =SUM(ROUND(I196:J196,2)) -> 0
F197: 0 | G197: 0 | H197: 0 | I197: 0 | J197: 0 | K197: =SUM(ROUND(I197:J197,2)) -> 0
F198: 0 | G198: 0 | H198: 0 | I198: 0 | J198: 0 | K198: =SUM(ROUND(I198:J198,2)) -> 0
F199: 0 | G199: 0 | H199: 0 | I199: 0 | J199: 0 | K199: =SUM(ROUND(I199:J199,2)) -> 0
F200: 0 | G200: 0 | H200: 0 | I200: 0 | J200: 0 | K200: =SUM(ROUND(I200:J200,2)) -> 0
... 10 more rows

Sheet Materials & Miscellaneous
A1: INVOICE | R1: SANDBOX AREA (highlighted in light red)- For rough work associated with the print area to the left. Rough work may include, notes, calculations, derivations, etc.
A2: MATERIALS & MISCELLANEOUS
A3: Budget Worksheet Reference ID | B3: Task # | C3: Legal Name of entity providing the item(s): Recipient/ Subrecipient/ Vendor | D3: Description | E3: Purpose | F3: # of Units Billed/ Match | G3: Unit Cost Billed/Match This Period ($) | H3: Total: # of Units x Unit Cost | I3: Billed CEC Expenses | J3: Match Share Expenses | K3: Total | L3: Use If Requesting Payment for Incurred Costs or Reimbursement for Partial Payments
L4: Check Box if Expense is a Partial Payment | M4: Provide payment amount(s) and CEC invoice number(s) for prior payment(s)
A5: M-1 | B5: 1 | C5: Materials LLC | D5: Material Type Z | E5: to build item for project | F5: 50 | G5: 149.53 | H5: =ROUND(F5*G5,2) -> 7476.5 | I5: 5267.23 | J5: =H5-I5 -> 2209.27 | K5: =SUM(ROUND(I5:J5,2)) -> 7476.5
A6: M-2 | B6: 2 | C6: M2G Inc. | D6: Material Type | E6: to lay foundation for equipment | F6: 1 | G6: 29346.17 | H6: =ROUND(F6*G6,2) -> 29346.17 | I6: 24391.39 | J6: =H6-I6 -> 4954.78 | K6: =SUM(ROUND(I6:J6,2)) -> 29346.17
F7: 0 | G7: 0 | H7: 0 | I7: 0 | J7: 0 | K7: =SUM(ROUND(I7:J7,2)) -> 0
F8: 0 | G8: 0 | H8: 0 | I8: 0 | J8: 0 | K8: =SUM(ROUND(I8:J8,2)) -> 0
F9: 0 | G9: 0 | H9: 0 | I9: 0 | J9: 0 | K9: =SUM(ROUND(I9:J9,2)) -> 0
F10: 0 | G10: 0 | H10: 0 | I10: 0 | J10: 0 | K10: =SUM(ROUND(I10:J10,2)) -> 0
F11: 0 | G11: 0 | H11: 0 | I11: 0 | J11: 0 | K11: =SUM(ROUND(I11:J11,2)) -> 0
F12: 0 | G12: 0 | H12: 0 | I12: 0 | J12: 0 | K12: =SUM(ROUND(I12:J12,2)) -> 0
F13: 0 | G13: 0 | H13: 0 | I13: 0 | J13: 0 | K13: =SUM(ROUND(I13:J13,2)) -> 0
F14: 0 | G14: 0 | H14: 0 | I14: 0 | J14: 0 | K14: =SUM(ROUND(I14:J14,2)) -> 0
F15: 0 | G15: 0 | H15: 0 | I15: 0 | J15: 0 | K15: =SUM(ROUND(I15:J15,2)) -> 0
F16: 0 | G16: 0 | H16: 0 | I16: 0 | J16: 0 | K16: =SUM(ROUND(I16:J16,2)) -> 0
F17: 0 | G17: 0 | H17: 0 | I17: 0 | J17: 0 | K17: =SUM(ROUND(I17:J17,2)) -> 0
F18: 0 | G18: 0 | H18: 0 | I18: 0 | J18: 0 | K18: =SUM(ROUND(I18:J18,2)) -> 0
F19: 0 | G19: 0 | H19: 0 | I19: 0 | J19: 0 | K19: =SUM(ROUND(I19:J19,2)) -> 0
F20: 0 | G20: 0 | H20: 0 | I20: 0 | J20: 0 | K20: =SUM(ROUND(I20:J20,2)) -> 0
F21: 0 | G21: 0 | H21: 0 | I21: 0 | J21: 0 | K21: =SUM(ROUND(I21:J21,2)) -> 0
F22: 0 | G22: 0 | H22: 0 | I22: 0 | J22: 0 | K22: =SUM(ROUND(I22:J22,2)) -> 0
F23: 0 | G23: 0 | H23: 0 | I23: 0 | J23: 0 | K23: =SUM(ROUND(I23:J23,2)) -> 0
F24: 0 | G24: 0 | H24: =ROUND(F24*G24,2) -> 0 | I24: 0 | J24: 0 | K24: =SUM(ROUND(I24:J24,2)) -> 0
F25: 0 | G25: 0 | H25: 0 | I25: 0 | J25: 0 | K25: =SUM(ROUND(I25:J25,2)) -> 0
F26: 0 | G26: 0 | H26: 0 | I26: 0 | J26: 0 | K26: =SUM(ROUND(I26:J26,2)) -> 0
F27: 0 | G27: 0 | H27: 0 | I27: 0 | J27: 0 | K27: =SUM(ROUND(I27:J27,2)) -> 0
F28: 0 | G28: 0 | H28: 0 | I28: 0 | J28: 0 | K28: =SUM(ROUND(I28:J28,2)) -> 0
F29: 0 | G29: 0 | H29: 0 | I29: 0 | J29: 0 | K29: =SUM(ROUND(I29:J29,2)) -> 0
F30: 0 | G30: 0 | H30: 0 | I30: 0 | J30: 0 | K30: =SUM(ROUND(I30:J30,2)) -> 0
F31: 0 | G31: 0 | H31: 0 | I31: 0 | J31: 0 | K31: =SUM(ROUND(I31:J31,2)) -> 0
F32: 0 | G32: 0 | H32: 0 | I32: 0 | J32: 0 | K32: =SUM(ROUND(I32:J32,2)) -> 0
F33: 0 | G33: 0 | H33: 0 | I33: 0 | J33: 0 | K33: =SUM(ROUND(I33:J33,2)) -> 0
F34: 0 | G34: 0 | H34: 0 | I34: 0 | J34: 0 | K34: =SUM(ROUND(I34:J34,2)) -> 0
F35: 0 | G35: 0 | H35: 0 | I35: 0 | J35: 0 | K35: =SUM(ROUND(I35:J35,2)) -> 0
F36: 0 | G36: 0 | H36: 0 | I36: 0 | J36: 0 | K36: =SUM(ROUND(I36:J36,2)) -> 0
F37: 0 | G37: 0 | H37: 0 | I37: 0 | J37: 0 | K37: =SUM(ROUND(I37:J37,2)) -> 0
F38: 0 | G38: 0 | H38: 0 | I38: 0 | J38: 0 | K38: =SUM(ROUND(I38:J38,2)) -> 0
F39: 0 | G39: 0 | H39: 0 | I39: 0 | J39: 0 | K39: =SUM(ROUND(I39:J39,2)) -> 0
F40: 0 | G40: 0 | H40: 0 | I40: 0 | J40: 0 | K40: =SUM(ROUND(I40:J40,2)) -> 0
F41: 0 | G41: 0 | H41: 0 | I41: 0 | J41: 0 | K41: =SUM(ROUND(I41:J41,2)) -> 0
F42: 0 | G42: 0 | H42: 0 | I42: 0 | J42: 0 | K42: =SUM(ROUND(I42:J42,2)) -> 0
F43: 0 | G43: 0 | H43: 0 | I43: 0 | J43: 0 | K43: =SUM(ROUND(I43:J43,2)) -> 0
F44: 0 | G44: 0 | H44: 0 | I44: 0 | J44: 0 | K44: =SUM(ROUND(I44:J44,2)) -> 0
F45: 0 | G45: 0 | H45: 0 | I45: 0 | J45: 0 | K45: =SUM(ROUND(I45:J45,2)) -> 0
F46: 0 | G46: 0 | H46: 0 | I46: 0 | J46: 0 | K46: =SUM(ROUND(I46:J46,2)) -> 0
F47: 0 | G47: 0 | H47: 0 | I47: 0 | J47: 0 | K47: =SUM(ROUND(I47:J47,2)) -> 0
F48: 0 | G48: 0 | H48: 0 | I48: 0 | J48: 0 | K48: =SUM(ROUND(I48:J48,2)) -> 0
F49: 0 | G49: 0 | H49: 0 | I49: 0 | J49: 0 | K49: =SUM(ROUND(I49:J49,2)) -> 0
F50: 0 | G50: 0 | H50: 0 | I50: 0 | J50: 0 | K50: =SUM(ROUND(I50:J50,2)) -> 0
F51: 0 | G51: 0 | H51: 0 | I51: 0 | J51: 0 | K51: =SUM(ROUND(I51:J51,2)) -> 0
F52: 0 | G52: 0 | H52: 0 | I52: 0 | J52: 0 | K52: =SUM(ROUND(I52:J52,2)) -> 0
F53: 0 | G53: 0 | H53: 0 | I53: 0 | J53: 0 | K53: =SUM(ROUND(I53:J53,2)) -> 0
F54: 0 | G54: 0 | H54: 0 | I54: 0 | J54: 0 | K54: =SUM(ROUND(I54:J54,2)) -> 0
F55: 0 | G55: 0 | H55: 0 | I55: 0 | J55: 0 | K55: =SUM(ROUND(I55:J55,2)) -> 0
F56: 0 | G56: 0 | H56: 0 | I56: 0 | J56: 0 | K56: =SUM(ROUND(I56:J56,2)) -> 0
F57: 0 | G57: 0 | H57: 0 | I57: 0 | J57: 0 | K57: =SUM(ROUND(I57:J57,2)) -> 0
F58: 0 | G58: 0 | H58: 0 | I58: 0 | J58: 0 | K58: =SUM(ROUND(I58:J58,2)) -> 0
F59: 0 | G59: 0 | H59: 0 | I59: 0 | J59: 0 | K59: =SUM(ROUND(I59:J59,2)) -> 0
F60: 0 | G60: 0 | H60: 0 | I60: 0 | J60: 0 | K60: =SUM(ROUND(I60:J60,2)) -> 0
F61: 0 | G61: 0 | H61: 0 | I61: 0 | J61: 0 | K61: =SUM(ROUND(I61:J61,2)) -> 0
F62: 0 | G62: 0 | H62: 0 | I62: 0 | J62: 0 | K62: =SUM(ROUND(I62:J62,2)) -> 0
F63: 0 | G63: 0 | H63: 0 | I63: 0 | J63: 0 | K63: =SUM(ROUND(I63:J63,2)) -> 0
F64: 0 | G64: 0 | H64: =ROUND(F64*G64,2) -> 0 | I64: 0 | J64: 0 | K64: =SUM(ROUND(I64:J64,2)) -> 0
F65: 0 | G65: 0 | H65: 0 | I65: 0 | J65: 0 | K65: =SUM(ROUND(I65:J65,2)) -> 0
F66: 0 | G66: 0 | H66: 0 | I66: 0 | J66: 0 | K66: =SUM(ROUND(I66:J66,2)) -> 0
F67: 0 | G67: 0 | H67: 0 | I67: 0 | J67: 0 | K67: =SUM(ROUND(I67:J67,2)) -> 0
F68: 0 | G68: 0 | H68: 0 | I68: 0 | J68: 0 | K68: =SUM(ROUND(I68:J68,2)) -> 0
F69: 0 | G69: 0 | H69: 0 | I69: 0 | J69: 0 | K69: =SUM(ROUND(I69:J69,2)) -> 0
F70: 0 | G70: 0 | H70: 0 | I70: 0 | J70: 0 | K70: =SUM(ROUND(I70:J70,2)) -> 0
F71: 0 | G71: 0 | H71: 0 | I71: 0 | J71: 0 | K71: =SUM(ROUND(I71:J71,2)) -> 0
F72: 0 | G72: 0 | H72: 0 | I72: 0 | J72: 0 | K72: =SUM(ROUND(I72:J72,2)) -> 0
F73: 0 | G73: 0 | H73: 0 | I73: 0 | J73: 0 | K73: =SUM(ROUND(I73:J73,2)) -> 0
F74: 0 | G74: 0 | H74: 0 | I74: 0 | J74: 0 | K74: =SUM(ROUND(I74:J74,2)) -> 0
F75: 0 | G75: 0 | H75: 0 | I75: 0 | J75: 0 | K75: =SUM(ROUND(I75:J75,2)) -> 0
F76: 0 | G76: 0 | H76: 0 | I76: 0 | J76: 0 | K76: =SUM(ROUND(I76:J76,2)) -> 0
F77: 0 | G77: 0 | H77: 0 | I77: 0 | J77: 0 | K77: =SUM(ROUND(I77:J77,2)) -> 0
F78: 0 | G78: 0 | H78: 0 | I78: 0 | J78: 0 | K78: =SUM(ROUND(I78:J78,2)) -> 0
F79: 0 | G79: 0 | H79: 0 | I79: 0 | J79: 0 | K79: =SUM(ROUND(I79:J79,2)) -> 0
F80: 0 | G80: 0 | H80: 0 | I80: 0 | J80: 0 | K80: =SUM(ROUND(I80:J80,2)) -> 0
F81: 0 | G81: 0 | H81: 0 | I81: 0 | J81: 0 | K81: =SUM(ROUND(I81:J81,2)) -> 0
F82: 0 | G82: 0 | H82: 0 | I82: 0 | J82: 0 | K82: =SUM(ROUND(I82:J82,2)) -> 0
F83: 0 | G83: 0 | H83: 0 | I83: 0 | J83: 0 | K83: =SUM(ROUND(I83:J83,2)) -> 0
F84: 0 | G84: 0 | H84: 0 | I84: 0 | J84: 0 | K84: =SUM(ROUND(I84:J84,2)) -> 0
F85: 0 | G85: 0 | H85: 0 | I85: 0 | J85: 0 | K85: =SUM(ROUND(I85:J85,2)) -> 0
F86: 0 | G86: 0 | H86: 0 | I86: 0 | J86: 0 | K86: =SUM(ROUND(I86:J86,2)) -> 0
F87: 0 | G87: 0 | H87: 0 | I87: 0 | J87: 0 | K87: =SUM(ROUND(I87:J87,2)) -> 0
F88: 0 | G88: 0 | H88: 0 | I88: 0 | J88: 0 | K88: =SUM(ROUND(I88:J88,2)) -> 0
F89: 0 | G89: 0 | H89: 0 | I89: 0 | J89: 0 | K89: =SUM(ROUND(I89:J89,2)) -> 0
F90: 0 | G90: 0 | H90: 0 | I90: 0 | J90: 0 | K90: =SUM(ROUND(I90:J90,2)) -> 0
F91: 0 | G91: 0 | H91: 0 | I91: 0 | J91: 0 | K91: =SUM(ROUND(I91:J91,2)) -> 0
F92: 0 | G92: 0 | H92: 0 | I92: 0 | J92: 0 | K92: =SUM(ROUND(I92:J92,2)) -> 0
F93: 0 | G93: 0 | H93: 0 | I93: 0 | J93: 0 | K93: =SUM(ROUND(I93:J93,2)) -> 0
F94: 0 | G94: 0 | H94: 0 | I94: 0 | J94: 0 | K94: =SUM(ROUND(I94:J94,2)) -> 0
F95: 0 | G95: 0 | H95: 0 | I95: 0 | J95: 0 | K95: =SUM(ROUND(I95:J95,2)) -> 0
F96: 0 | G96: 0 | H96: 0 | I96: 0 | J96: 0 | K96: =SUM(ROUND(I96:J96,2)) -> 0
F97: 0 | G97: 0 | H97: 0 | I97: 0 | J97: 0 | K97: =SUM(ROUND(I97:J97,2)) -> 0
F98: 0 | G98: 0 | H98: 0 | I98: 0 | J98: 0 | K98: =SUM(ROUND(I98:J98,2)) -> 0
F99: 0 | G99: 0 | H99: 0 | I99: 0 | J99: 0 | K99: =SUM(ROUND(I99:J99,2)) -> 0
F100: 0 | G100: 0 | H100: 0 | I100: 0 | J100: 0 | K100: =SUM(ROUND(I100:J100,2)) -> 0
F101: 0 | G101: 0 | H101: 0 | I101: 0 | J101: 0 | K101: =SUM(ROUND(I101:J101,2)) -> 0
F102: 0 | G102: 0 | H102: 0 | I102: 0 | J102: 0 | K102: =SUM(ROUND(I102:J102,2)) -> 0
F103: 0 | G103: 0 | H103: 0 | I103: 0 | J103: 0 | K103: =SUM(ROUND(I103:J103,2)) -> 0
F104: 0 | G104: 0 | H104: =ROUND(F104*G104,2) -> 0 | I104: 0 | J104: 0 | K104: =SUM(ROUND(I104:J104,2)) -> 0
F105: 0 | G105: 0 | H105: 0 | I105: 0 | J105: 0 | K105: =SUM(ROUND(I105:J105,2)) -> 0
F106: 0 | G106: 0 | H106: 0 | I106: 0 | J106: 0 | K106: =SUM(ROUND(I106:J106,2)) -> 0
F107: 0 | G107: 0 | H107: 0 | I107: 0 | J107: 0 | K107: =SUM(ROUND(I107:J107,2)) -> 0
F108: 0 | G108: 0 | H108: 0 | I108: 0 | J108: 0 | K108: =SUM(ROUND(I108:J108,2)) -> 0
F109: 0 | G109: 0 | H109: 0 | I109: 0 | J109: 0 | K109: =SUM(ROUND(I109:J109,2)) -> 0
F110: 0 | G110: 0 | H110: 0 | I110: 0 | J110: 0 | K110: =SUM(ROUND(I110:J110,2)) -> 0
F111: 0 | G111: 0 | H111: 0 | I111: 0 | J111: 0 | K111: =SUM(ROUND(I111:J111,2)) -> 0
F112: 0 | G112: 0 | H112: 0 | I112: 0 | J112: 0 | K112: =SUM(ROUND(I112:J112,2)) -> 0
F113: 0 | G113: 0 | H113: 0 | I113: 0 | J113: 0 | K113: =SUM(ROUND(I113:J113,2)) -> 0
F114: 0 | G114: 0 | H114: 0 | I114: 0 | J114: 0 | K114: =SUM(ROUND(I114:J114,2)) -> 0
F115: 0 | G115: 0 | H115: 0 | I115: 0 | J115: 0 | K115: =SUM(ROUND(I115:J115,2)) -> 0
F116: 0 | G116: 0 | H116: 0 | I116: 0 | J116: 0 | K116: =SUM(ROUND(I116:J116,2)) -> 0
F117: 0 | G117: 0 | H117: 0 | I117: 0 | J117: 0 | K117: =SUM(ROUND(I117:J117,2)) -> 0
F118: 0 | G118: 0 | H118: 0 | I118: 0 | J118: 0 | K118: =SUM(ROUND(I118:J118,2)) -> 0
F119: 0 | G119: 0 | H119: 0 | I119: 0 | J119: 0 | K119: =SUM(ROUND(I119:J119,2)) -> 0
F120: 0 | G120: 0 | H120: 0 | I120: 0 | J120: 0 | K120: =SUM(ROUND(I120:J120,2)) -> 0
F121: 0 | G121: 0 | H121: 0 | I121: 0 | J121: 0 | K121: =SUM(ROUND(I121:J121,2)) -> 0
F122: 0 | G122: 0 | H122: 0 | I122: 0 | J122: 0 | K122: =SUM(ROUND(I122:J122,2)) -> 0
F123: 0 | G123: 0 | H123: 0 | I123: 0 | J123: 0 | K123: =SUM(ROUND(I123:J123,2)) -> 0
F124: 0 | G124: 0 | H124: 0 | I124: 0 | J124: 0 | K124: =SUM(ROUND(I124:J124,2)) -> 0
F125: 0 | G125: 0 | H125: 0 | I125: 0 | J125: 0 | K125: =SUM(ROUND(I125:J125,2)) -> 0
F126: 0 | G126: 0 | H126: 0 | I126: 0 | J126: 0 | K126: =SUM(ROUND(I126:J126,2)) -> 0
F127: 0 | G127: 0 | H127: 0 | I127: 0 | J127: 0 | K127: =SUM(ROUND(I127:J127,2)) -> 0
F128: 0 | G128: 0 | H128: 0 | I128: 0 | J128: 0 | K128: =SUM(ROUND(I128:J128,2)) -> 0
F129: 0 | G129: 0 | H129: 0 | I129: 0 | J129: 0 | K129: =SUM(ROUND(I129:J129,2)) -> 0
F130: 0 | G130: 0 | H130: 0 | I130: 0 | J130: 0 | K130: =SUM(ROUND(I130:J130,2)) -> 0
F131: 0 | G131: 0 | H131: 0 | I131: 0 | J131: 0 | K131: =SUM(ROUND(I131:J131,2)) -> 0
F132: 0 | G132: 0 | H132: 0 | I132: 0 | J132: 0 | K132: =SUM(ROUND(I132:J132,2)) -> 0
F133: 0 | G133: 0 | H133: 0 | I133: 0 | J133: 0 | K133: =SUM(ROUND(I133:J133,2)) -> 0
F134: 0 | G134: 0 | H134: 0 | I134: 0 | J134: 0 | K134: =SUM(ROUND(I134:J134,2)) -> 0
F135: 0 | G135: 0 | H135: 0 | I135: 0 | J135: 0 | K135: =SUM(ROUND(I135:J135,2)) -> 0
F136: 0 | G136: 0 | H136: 0 | I136: 0 | J136: 0 | K136: =SUM(ROUND(I136:J136,2)) -> 0
F137: 0 | G137: 0 | H137: 0 | I137: 0 | J137: 0 | K137: =SUM(ROUND(I137:J137,2)) -> 0
F138: 0 | G138: 0 | H138: 0 | I138: 0 | J138: 0 | K138: =SUM(ROUND(I138:J138,2)) -> 0
F139: 0 | G139: 0 | H139: 0 | I139: 0 | J139: 0 | K139: =SUM(ROUND(I139:J139,2)) -> 0
F140: 0 | G140: 0 | H140: 0 | I140: 0 | J140: 0 | K140: =SUM(ROUND(I140:J140,2)) -> 0
F141: 0 | G141: 0 | H141: 0 | I141: 0 | J141: 0 | K141: =SUM(ROUND(I141:J141,2)) -> 0
F142: 0 | G142: 0 | H142: 0 | I142: 0 | J142: 0 | K142: =SUM(ROUND(I142:J142,2)) -> 0
F143: 0 | G143: 0 | H143: 0 | I143: 0 | J143: 0 | K143: =SUM(ROUND(I143:J143,2)) -> 0
F144: 0 | G144: 0 | H144: 0 | I144: 0 | J144: 0 | K144: =SUM(ROUND(I144:J144,2)) -> 0
F145: 0 | G145: 0 | H145: 0 | I145: 0 | J145: 0 | K145: =SUM(ROUND(I145:J145,2)) -> 0
F146: 0 | G146: 0 | H146: 0 | I146: 0 | J146: 0 | K146: =SUM(ROUND(I146:J146,2)) -> 0
F147: 0 | G147: 0 | H147: 0 | I147: 0 | J147: 0 | K147: =SUM(ROUND(I147:J147,2)) -> 0
F148: 0 | G148: 0 | H148: 0 | I148: 0 | J148: 0 | K148: =SUM(ROUND(I148:J148,2)) -> 0
F149: 0 | G149: 0 | H149: 0 | I149: 0 | J149: 0 | K149: =SUM(ROUND(I149:J149,2)) -> 0
F150: 0 | G150: 0 | H150: 0 | I150: 0 | J150: 0 | K150: =SUM(ROUND(I150:J150,2)) -> 0
F151: 0 | G151: 0 | H151: 0 | I151: 0 | J151: 0 | K151: =SUM(ROUND(I151:J151,2)) -> 0
F152: 0 | G152: 0 | H152: 0 | I152: 0 | J152: 0 | K152: =SUM(ROUND(I152:J152,2)) -> 0
F153: 0 | G153: 0 | H153: 0 | I153: 0 | J153: 0 | K153: =SUM(ROUND(I153:J153,2)) -> 0
F154: 0 | G154: 0 | H154: 0 | I154: 0 | J154: 0 | K154: =SUM(ROUND(I154:J154,2)) -> 0
F155: 0 | G155: 0 | H155: 0 | I155: 0 | J155: 0 | K155: =SUM(ROUND(I155:J155,2)) -> 0
F156: 0 | G156: 0 | H156: 0 | I156: 0 | J156: 0 | K156: =SUM(ROUND(I156:J156,2)) -> 0
F157: 0 | G157: 0 | H157: 0 | I157: 0 | J157: 0 | K157: =SUM(ROUND(I157:J157,2)) -> 0
F158: 0 | G158: 0 | H158: 0 | I158: 0 | J158: 0 | K158: =SUM(ROUND(I158:J158,2)) -> 0
F159: 0 | G159: 0 | H159: 0 | I159: 0 | J159: 0 | K159: =SUM(ROUND(I159:J159,2)) -> 0
F160: 0 | G160: 0 | H160: 0 | I160: 0 | J160: 0 | K160: =SUM(ROUND(I160:J160,2)) -> 0
F161: 0 | G161: 0 | H161: 0 | I161: 0 | J161: 0 | K161: =SUM(ROUND(I161:J161,2)) -> 0
F162: 0 | G162: 0 | H162: 0 | I162: 0 | J162: 0 | K162: =SUM(ROUND(I162:J162,2)) -> 0
F163: 0 | G163: 0 | H163: 0 | I163: 0 | J163: 0 | K163: =SUM(ROUND(I163:J163,2)) -> 0
F164: 0 | G164: 0 | H164: 0 | I164: 0 | J164: 0 | K164: =SUM(ROUND(I164:J164,2)) -> 0
F165: 0 | G165: 0 | H165: 0 | I165: 0 | J165: 0 | K165: =SUM(ROUND(I165:J165,2)) -> 0
F166: 0 | G166: 0 | H166: 0 | I166: 0 | J166: 0 | K166: =SUM(ROUND(I166:J166,2)) -> 0
F167: 0 | G167: 0 | H167: 0 | I167: 0 | J167: 0 | K167: =SUM(ROUND(I167:J167,2)) -> 0
F168: 0 | G168: 0 | H168: =ROUND(F168*G168,2) -> 0 | I168: 0 | J168: 0 | K168: =SUM(ROUND(I168:J168,2)) -> 0
F169: 0 | G169: 0 | H169: 0 | I169: 0 | J169: 0 | K169: =SUM(ROUND(I169:J169,2)) -> 0
F170: 0 | G170: 0 | H170: 0 | I170: 0 | J170: 0 | K170: =SUM(ROUND(I170:J170,2)) -> 0
F171: 0 | G171: 0 | H171: 0 | I171: 0 | J171: 0 | K171: =SUM(ROUND(I171:J171,2)) -> 0
F172: 0 | G172: 0 | H172: 0 | I172: 0 | J172: 0 | K172: =SUM(ROUND(I172:J172,2)) -> 0
F173: 0 | G173: 0 | H173: 0 | I173: 0 | J173: 0 | K173: =SUM(ROUND(I173:J173,2)) -> 0
F174: 0 | G174: 0 | H174: 0 | I174: 0 | J174: 0 | K174: =SUM(ROUND(I174:J174,2)) -> 0
F175: 0 | G175: 0 | H175: 0 | I175: 0 | J175: 0 | K175: =SUM(ROUND(I175:J175,2)) -> 0
F176: 0 | G176: 0 | H176: 0 | I176: 0 | J176: 0 | K176: =SUM(ROUND(I176:J176,2)) -> 0
F177: 0 | G177: 0 | H177: 0 | I177: 0 | J177: 0 | K177: =SUM(ROUND(I177:J177,2)) -> 0
F178: 0 | G178: 0 | H178: 0 | I178: 0 | J178: 0 | K178: =SUM(ROUND(I178:J178,2)) -> 0
F179: 0 | G179: 0 | H179: 0 | I179: 0 | J179: 0 | K179: =SUM(ROUND(I179:J179,2)) -> 0
F180: 0 | G180: 0 | H180: 0 | I180: 0 | J180: 0 | K180: =SUM(ROUND(I180:J180,2)) -> 0
F181: 0 | G181: 0 | H181: 0 | I181: 0 | J181: 0 | K181: =SUM(ROUND(I181:J181,2)) -> 0
F182: 0 | G182: 0 | H182: 0 | I182: 0 | J182: 0 | K182: =SUM(ROUND(I182:J182,2)) -> 0
F183: 0 | G183: 0 | H183: 0 | I183: 0 | J183: 0 | K183: =SUM(ROUND(I183:J183,2)) -> 0
F184: 0 | G184: 0 | H184: 0 | I184: 0 | J184: 0 | K184: =SUM(ROUND(I184:J184,2)) -> 0
F185: 0 | G185: 0 | H185: 0 | I185: 0 | J185: 0 | K185: =SUM(ROUND(I185:J185,2)) -> 0
F186: 0 | G186: 0 | H186: 0 | I186: 0 | J186: 0 | K186: =SUM(ROUND(I186:J186,2)) -> 0
F187: 0 | G187: 0 | H187: 0 | I187: 0 | J187: 0 | K187: =SUM(ROUND(I187:J187,2)) -> 0
F188: 0 | G188: 0 | H188: 0 | I188: 0 | J188: 0 | K188: =SUM(ROUND(I188:J188,2)) -> 0
F189: 0 | G189: 0 | H189: 0 | I189: 0 | J189: 0 | K189: =SUM(ROUND(I189:J189,2)) -> 0
F190: 0 | G190: 0 | H190: 0 | I190: 0 | J190: 0 | K190: =SUM(ROUND(I190:J190,2)) -> 0
F191: 0 | G191: 0 | H191: 0 | I191: 0 | J191: 0 | K191: =SUM(ROUND(I191:J191,2)) -> 0
F192: 0 | G192: 0 | H192: 0 | I192: 0 | J192: 0 | K192: =SUM(ROUND(I192:J192,2)) -> 0
F193: 0 | G193: 0 | H193: 0 | I193: 0 | J193: 0 | K193: =SUM(ROUND(I193:J193,2)) -> 0
F194: 0 | G194: 0 | H194: 0 | I194: 0 | J194: 0 | K194: =SUM(ROUND(I194:J194,2)) -> 0
F195: 0 | G195: 0 | H195: 0 | I195: 0 | J195: 0 | K195: =SUM(ROUND(I195:J195,2)) -> 0
F196: 0 | G196: 0 | H196: 0 | I196: 0 | J196: 0 | K196: =SUM(ROUND(I196:J196,2)) -> 0
F197: 0 | G197: 0 | H197: 0 | I197: 0 | J197: 0 | K197: =SUM(ROUND(I197:J197,2)) -> 0
F198: 0 | G198: 0 | H198: 0 | I198: 0 | J198: 0 | K198: =SUM(ROUND(I198:J198,2)) -> 0
F199: 0 | G199: 0 | H199: 0 | I199: 0 | J199: 0 | K199: =SUM(ROUND(I199:J199,2)) -> 0
F200: 0 | G200: 0 | H200: 0 | I200: 0 | J200: 0 | K200: =SUM(ROUND(I200:J200,2)) -> 0
... 9 more rows

Sheet Subs & Vendors
A1: INVOICE | N1: SANDBOX AREA (highlighted in light red)- For rough work associated with the print area to the left. Rough work may include, notes, calculations, derivations, etc.
A2: SUBRECIPIENTS AND VENDORS
A3: Subrecipients Summary
A4: Budget Worksheet Reference ID | B4: Subrecipient Name | C4: Funding Category | D4: Subrecipient Agreement Budget | E4: Subrecipient Request This Period | F4: Subrecipient Cumulative Expenses Billed to Date | G4: Subrecipient Balance | H4: Subrecipient Exempt from Retention? | I4: Billed CEC Expenses without Retention
A5: S-1 | B5: M&M, Inc. | C5: CEC | D5: 50000 | E5: 9257.26 | F5: 15636.524 | G5: =ROUND(D5,2)-ROUND(F5,2) -> 34363.48 | H5: No | I5: =IF(H5="Yes",ROUND(E5,2),0) -> 0
C6: Match | D6: 30000 | E6: 5137.61 | F6: 7717.55 | G6: =ROUND(D6,2)-ROUND(F6,2) -> 22282.45
A7: S-1 | B7: ABC National Lab | C7: CEC | D7: 50000 | E7: 11635.71 | F7: 17103.94 | G7: 32896.06 | H7: Yes | I7: =IF(H7="Yes",ROUND(E7,2),0) -> 11635.71
C8: Match | D8: 40000 | E8: 8267.43 | F8: 9952.3 | G8: 30047.7
B9: Subrecipient 3 | C9: CEC | D9: 0 | E9: 0 | F9: 0 | G9: 0 | H9: Select Yes or No | I9: =IF(H9="Yes",ROUND(E9,2),0) -> 0
C10: Match | D10: 0 | E10: 0 | F10: 0 | G10: 0
B11: Subrecipient 4 | C11: CEC | D11: 0 | E11: 0 | F11: 0 | G11: 0 | H11: Select Yes or No | I11: =IF(H11="Yes",ROUND(E11,2),0) -> 0
C12: Match | D12: 0 | E12: 0 | F12: 0 | G12: 0
B13: Subrecipient 5 | C13: CEC | D13: 0 | E13: 0 | F13: 0 | G13: 0 | H13: Select Yes or No | I13: =IF(H13="Yes",ROUND(E13,2),0) -> 0
C14: Match | D14: 0 | E14: 0 | F14: 0 | G14: 0
B15: Subrecipient 6 | C15: CEC | D15: 0 | E15: 0 | F15: 0 | G15: 0 | H15: Select Yes or No | I15: =IF(H15="Yes",ROUND(E15,2),0) -> 0
C16: Match | D16: 0 | E16: 0 | F16: 0 | G16: 0
B17: Subrecipient 7 | C17: CEC | D17: 0 | E17: 0 | F17: 0 | G17: 0 | H17: Select Yes or No | I17: =IF(H17="Yes",ROUND(E17,2),0) -> 0
C18: Match | D18: 0 | E18: 0 | F18: 0 | G18: 0
B19: Subrecipient 8 | C19: CEC | D19: 0 | E19: 0 | F19: 0 | G19: 0 | H19: Select Yes or No | I19: =IF(H19="Yes",ROUND(E19,2),0) -> 0
C20: Match | D20: 0 | E20: 0 | F20: 0 | G20: 0
B21: Subrecipient 9 | C21: CEC | D21: 0 | E21: 0 | F21: 0 | G21: =ROUND(D21,2)-ROUND(F21,2) -> 0 | H21: Select Yes or No | I21: =IF(H21="Yes",ROUND(E21,2),0) -> 0
C22: Match | D22: 0 | E22: 0 | F22: 0 | G22: 0
B23: Subrecipient 10 | C23: CEC | D23: 0 | E23: 0 | F23: 0 | G23: 0 | H23: Select Yes or No | I23: =IF(H23="Yes",ROUND(E23,2),0) -> 0
C24: Match | D24: 0 | E24: 0 | F24: 0 | G24: 0
B25: Subrecipient 11 | C25: CEC | D25: 0 | E25: 0 | F25: 0 | G25: 0 | H25: Select Yes or No | I25: =IF(H25="Yes",ROUND(E25,2),0) -> 0
C26: Match | D26: 0 | E26: 0 | F26: 0 | G26: 0
B27: Subrecipient 12 | C27: CEC | D27: 0 | E27: 0 | F27: 0 | G27: 0 | H27: Select Yes or No | I27: =IF(H27="Yes",ROUND(E27,2),0) -> 0
C28: Match | D28: 0 | E28: 0 | F28: 0 | G28: 0
B29: Subrecipient 13 | C29: CEC | D29: 0 | E29: 0 | F29: 0 | G29: 0 | H29: Select Yes or No | I29: =IF(H29="Yes",ROUND(E29,2),0) -> 0
C30: Match | D30: 0 | E30: 0 | F30: 0 | G30: 0
B31: Subrecipient 14 | C31: CEC | D31: 0 | E31: 0 | F31: 0 | G31: 0 | H31: Select Yes or No | I31: =IF(H31="Yes",ROUND(E31,2),0) -> 0
C32: Match | D32: 0 | E32: 0 | F32: 0 | G32: 0
B33: Subrecipient 15 | C33: CEC | D33: 0 | E33: 0 | F33: 0 | G33: 0 | H33: Select Yes or No | I33: =IF(H33="Yes",ROUND(E33,2),0) -> 0
C34: Match | D34: 0 | E34: 0 | F34: 0 | G34: 0
B35: Subrecipient 16 | C35: CEC | D35: 0 | E35: 0 | F35: 0 | G35: 0 | H35: Select Yes or No | I35: =IF(H35="Yes",ROUND(E35,2),0) -> 0
C36: Match | D36: 0 | E36: 0 | F36: 0 | G36: 0
B37: Subrecipient 17 | C37: CEC | D37: 0 | E37: 0 | F37: 0 | G37: 0 | H37: Select Yes or No | I37: =IF(H37="Yes",ROUND(E37,2),0) -> 0
C38: Match | D38: 0 | E38: 0 | F38: 0 | G38: 0
B39: Subrecipient 18 | C39: CEC | D39: 0 | E39: 0 | F39: 0 | G39: 0 | H39: Select Yes or No | I39: =IF(H39="Yes",ROUND(E39,2),0) -> 0
C40: Match | D40: 0 | E40: 0 | F40: 0 | G40: 0
B41: Subrecipient 19 | C41: CEC | D41: 0 | E41: 0 | F41: 0 | G41: 0 | H41: Select Yes or No | I41: =IF(H41="Yes",ROUND(E41,2),0) -> 0
C42: Match | D42: 0 | E42: 0 | F42: 0 | G42: 0
B43: Subrecipient 20 | C43: CEC | D43: 0 | E43: 0 | F43: 0 | G43: 0 | H43: Select Yes or No | I43: =IF(H43="Yes",ROUND(E43,2),0) -> 0
C44: Match | D44: 0 | E44: 0 | F44: 0 | G44: 0
B45: Subrecipient 21 | C45: CEC | D45: 0 | E45: 0 | F45: 0 | G45: 0 | H45: Select Yes or No | I45: =IF(H45="Yes",ROUND(E45,2),0) -> 0
C46: Match | D46: 0 | E46: 0 | F46: 0 | G46: 0
B47: Subrecipient 22 | C47: CEC | D47: 0 | E47: 0 | F47: 0 | G47: 0 | H47: Select Yes or No | I47: =IF(H47="Yes",ROUND(E47,2),0) -> 0
C48: Match | D48: 0 | E48: 0 | F48: 0 | G48: 0
B49: Subrecipient 23 | C49: CEC | D49: 0 | E49: 0 | F49: 0 | G49: =ROUND(D49,2)-ROUND(F49,2) -> 0 | H49: Select Yes or No | I49: =IF(H49="Yes",ROUND(E49,2),0) -> 0
C50: Match | D50: 0 | E50: 0 | F50: 0 | G50: 0
B51: Subrecipient 24 | C51: CEC | D51: 0 | E51: 0 | F51: 0 | G51: 0 | H51: Select Yes or No | I51: =IF(H51="Yes",ROUND(E51,2),0) -> 0
C52: Match | D52: 0 | E52: 0 | F52: 0 | G52: 0
B53: Subrecipient 25 | C53: CEC | D53: 0 | E53: 0 | F53: 0 | G53: 0 | H53: Select Yes or No | I53: =IF(H53="Yes",ROUND(E53,2),0) -> 0
C54: Match | D54: 0 | E54: 0 | F54: 0 | G54: 0
B55: Subrecipient 26 | C55: CEC | D55: 0 | E55: 0 | F55: 0 | G55: 0 | H55: Select Yes or No | I55: =IF(H55="Yes",ROUND(E55,2),0) -> 0
C56: Match | D56: 0 | E56: 0 | F56: 0 | G56: 0
B57: Subrecipient 27 | C57: CEC | D57: 0 | E57: 0 | F57: 0 | G57: 0 | H57: Select Yes or No | I57: =IF(H57="Yes",ROUND(E57,2),0) -> 0
C58: Match | D58: 0 | E58: 0 | F58: 0 | G58: 0
B59: Subrecipient 28 | C59: CEC | D59: 0 | E59: 0 | F59: 0 | G59: 0 | H59: Select Yes or No | I59: =IF(H59="Yes",ROUND(E59,2),0) -> 0
C60: Match | D60: 0 | E60: 0 | F60: 0 | G60: 0
B61: Subrecipient 29 | C61: CEC | D61: 0 | E61: 0 | F61: 0 | G61: 0 | H61: Select Yes or No | I61: =IF(H61="Yes",ROUND(E61,2),0) -> 0
C62: Match | D62: 0 | E62: 0 | F62: 0 | G62: 0
B63: Subrecipient 30 | C63: CEC | D63: 0 | E63: 0 | F63: 0 | G63: 0 | H63: Select Yes or No | I63: =IF(H63="Yes",ROUND(E63,2),0) -> 0
C64: Match | D64: 0 | E64: 0 | F64: 0 | G64: 0
B65: Subrecipient 31 | C65: CEC | D65: 0 | E65: 0 | F65: 0 | G65: 0 | H65: Select Yes or No | I65: =IF(H65="Yes",ROUND(E65,2),0) -> 0
C66: Match | D66: 0 | E66: 0 | F66: 0 | G66: 0
B67: Subrecipient 32 | C67: CEC | D67: 0 | E67: 0 | F67: 0 | G67: 0 | H67: Select Yes or No | I67: =IF(H67="Yes",ROUND(E67,2),0) -> 0
C68: Match | D68: 0 | E68: 0 | F68: 0 | G68: 0
B69: Subrecipient 33 | C69: CEC | D69: 0 | E69: 0 | F69: 0 | G69: 0 | H69: Select Yes or No | I69: =IF(H69="Yes",ROUND(E69,2),0) -> 0
C70: Match | D70: 0 | E70: 0 | F70: 0 | G70: 0
B71: Subrecipient 34 | C71: CEC | D71: 0 | E71: 0 | F71: 0 | G71: 0 | H71: Select Yes or No | I71: =IF(H71="Yes",ROUND(E71,2),0) -> 0
C72: Match | D72: 0 | E72: 0 | F72: 0 | G72: 0
B73: Subrecipient 35 | C73: CEC | D73: 0 | E73: 0 | F73: 0 | G73: 0 | H73: Select Yes or No | I73: =IF(H73="Yes",ROUND(E73,2),0) -> 0
C74: Match | D74: 0 | E74: 0 | F74: 0 | G74: 0
B75: Subrecipient 36 | C75: CEC | D75: 0 | E75: 0 | F75: 0 | G75: 0 | H75: Select Yes or No | I75: =IF(H75="Yes",ROUND(E75,2),0) -> 0
C76: Match | D76: 0 | E76: 0 | F76: 0 | G76: 0
B77: Subrecipient 37 | C77: CEC | D77: 0 | E77: 0 | F77: 0 | G77: 0 | H77: Select Yes or No | I77: =IF(H77="Yes",ROUND(E77,2),0) -> 0
C78: Match | D78: 0 | E78: 0 | F78: 0 | G78: 0
B79: Subrecipient 38 | C79: CEC | D79: 0 | E79: 0 | F79: 0 | G79: 0 | H79: Select Yes or No | I79: =IF(H79="Yes",ROUND(E79,2),0) -> 0
C80: Match | D80: 0 | E80: 0 | F80: 0 | G80: 0
B81: Subrecipient 39 | C81: CEC | D81: 0 | E81: 0 | F81: 0 | G81: 0 | H81: Select Yes or No | I81: =IF(H81="Yes",ROUND(E81,2),0) -> 0
C82: Match | D82: 0 | E82: 0 | F82: 0 | G82: 0
B83: Subrecipient 40 | C83: CEC | D83: 0 | E83: 0 | F83: 0 | G83: 0 | H83: Select Yes or No | I83: =IF(H83="Yes",ROUND(E83,2),0) -> 0
C84: Match | D84: 0 | E84: 0 | F84: 0 | G84: 0
B85: Subrecipient 41 | C85: CEC | D85: 0 | E85: 0 | F85: 0 | G85: 0 | H85: Select Yes or No | I85: =IF(H85="Yes",ROUND(E85,2),0) -> 0
C86: Match | D86: 0 | E86: 0 | F86: 0 | G86: 0
B87: Subrecipient 42 | C87: CEC | D87: 0 | E87: 0 | F87: 0 | G87: 0 | H87: Select Yes or No | I87: =IF(H87="Yes",ROUND(E87,2),0) -> 0
C88: Match | D88: 0 | E88: 0 | F88: 0 | G88: 0
B89: Subrecipient 43 | C89: CEC | D89: 0 | E89: 0 | F89: 0 | G89: 0 | H89: Select Yes or No | I89: =IF(H89="Yes",ROUND(E89,2),0) -> 0
C90: Match | D90: 0 | E90: 0 | F90: 0 | G90: 0
B91: Subrecipient 44 | C91: CEC | D91: 0 | E91: 0 | F91: 0 | G91: 0 | H91: Select Yes or No | I91: =IF(H91="Yes",ROUND(E91,2),0) -> 0
C92: Match | D92: 0 | E92: 0 | F92: 0 | G92: 0
B93: Subrecipient 45 | C93: CEC | D93: 0 | E93: 0 | F93: 0 | G93: 0 | H93: Select Yes or No | I93: =IF(H93="Yes",ROUND(E93,2),0) -> 0
C94: Match | D94: 0 | E94: 0 | F94: 0 | G94: 0
B95: Subrecipient 46 | C95: CEC | D95: 0 | E95: 0 | F95: 0 | G95: 0 | H95: Select Yes or No | I95: =IF(H95="Yes",ROUND(E95,2),0) -> 0
C96: Match | D96: 0 | E96: 0 | F96: 0 | G96: 0
B97: Subrecipient 47 | C97: CEC | D97: 0 | E97: 0 | F97: 0 | G97: 0 | H97: Select Yes or No | I97: =IF(H97="Yes",ROUND(E97,2),0) -> 0
C98: Match | D98: 0 | E98: 0 | F98: 0 | G98: 0
B99: Subrecipient 48 | C99: CEC | D99: 0 | E99: 0 | F99: 0 | G99: 0 | H99: Select Yes or No | I99: =IF(H99="Yes",ROUND(E99,2),0) -> 0
C100: Match | D100: 0 | E100: 0 | F100: 0 | G100: 0
A101: CEC USE ONLY | B101: Subrecipient 49 | C101: CEC | D101: 0 | E101: 0 | F101: 0 | G101: 0 | H101: Select Yes or No | I101: =IF(H101="Yes",ROUND(E101,2),0) -> 0
C102: Match | D102: 0 | E102: 0 | F102: 0 | G102: 0
A103: CEC USE ONLY | B103: Subrecipient 50 | C103: CEC | D103: 0 | E103: 0 | F103: 0 | G103: 0 | H103: Select Yes or No | I103: =IF(H103="Yes",ROUND(E103,2),0) -> 0
C104: Match | D104: 0 | E104: 0 | F104: 0 | G104: 0
A105: Subrecipient Totals | C105: CEC | D105: =ROUND(D5,0)+ROUND(D7,0)+ROUND(D9,0)+ROUND(D11,0)+ROUND(D13,0)+ROUND(D15,0)+ROUND(D17,0)+ROUND(D19,0)+ROUND(D21,0)+ROUND(D23,0)+ROUND(D25,0)+ROUND(D27,0)+ROUND(D29,0)+ROUND(D31,0)+ROUND(D33,0)+ROUND(D35,0)+ROUND(D37,0)+ROUND(D39,0)+ROUND(D41,0)+ROUND(D43,0)+ROUND(D45,0)+ROUND(D47,0)+ROUND(D49,0)+ROUND(D51,0)+ROUND(D53,0)+ROUND(D55,0)+ROUND(D57,0)+ROUND(D59,0)+ROUND(D61,0)+ROUND(D63,0)+ROUND(D65,0)+ROUND(D67,0)+ROUND(D69,0)+ROUND(D71,0)+ROUND(D73,0)+ROUND(D75,0)+ROUND(D77,0)+ROUND(D79,0)+ROUND(D81,0)+ROUND(D83,0)+ROUND(D85,0)+ROUND(D87,0)+ROUND(D89,0)+ROUND(D91,0)+ROUND(D93,0)+ROUND(D95,0)+ROUND(D97,0)+ROUND(D99,0)+ROUND(D101,0)+ROUND(D103,0) -> 100000 | E105: =ROUND(E5,2)+ROUND(E7,2)+ROUND(E9,2)+ROUND(E11,2)+ROUND(E13,2)+ROUND(E15,2)+ROUND(E17,2)+ROUND(E19,2)+ROUND(E21,2)+ROUND(E23,2)+ROUND(E25,2)+ROUND(E27,2)+ROUND(E29,2)+ROUND(E31,2)+ROUND(E33,2)+ROUND(E35,2)+ROUND(E37,2)+ROUND(E39,2)+ROUND(E41,2)+ROUND(E43,2)+ROUND(E45,2)+ROUND(E47,2)+ROUND(E49,2)+ROUND(E51,2)+ROUND(E53,2)+ROUND(E55,2)+ROUND(E57,2)+ROUND(E59,2)+ROUND(E61,2)+ROUND(E63,2)+ROUND(E65,2)+ROUND(E67,2)+ROUND(E69,2)+ROUND(E71,2)+ROUND(E73,2)+ROUND(E75,2)+ROUND(E77,2)+ROUND(E79,2)+ROUND(E81,2)+ROUND(E83,2)+ROUND(E85,2)+ROUND(E87,2)+ROUND(E89,2)+ROUND(E91,2)+ROUND(E93,2)+ROUND(E95,2)+ROUND(E97,2)+ROUND(E99,2)+ROUND(E101,2)+ROUND(E103,2) -> 20892.97 | F105: =ROUND(F5,2)+ROUND(F7,2)+ROUND(F9,2)+ROUND(F11,2)+ROUND(F13,2)+ROUND(F15,2)+ROUND(F17,2)+ROUND(F19,2)+ROUND(F21,2)+ROUND(F23,2)+ROUND(F25,2)+ROUND(F27,2)+ROUND(F29,2)+ROUND(F31,2)+ROUND(F33,2)+ROUND(F35,2)+ROUND(F37,2)+ROUND(F39,2)+ROUND(F41,2)+ROUND(F43,2)+ROUND(F45,2)+ROUND(F47,2)+ROUND(F49,2)+ROUND(F51,2)+ROUND(F53,2)+ROUND(F55,2)+ROUND(F57,2)+ROUND(F59,2)+ROUND(F61,2)+ROUND(F63,2)+ROUND(F65,2)+ROUND(F67,2)+ROUND(F69,2)+ROUND(F71,2)+ROUND(F73,2)+ROUND(F75,2)+ROUND(F77,2)+ROUND(F79,2)+ROUND(F81,2)+ROUND(F83,2)+ROUND(F85,2)+ROUND(F87,2)+ROUND(F89,2)+ROUND(F91,2)+ROUND(F93,2)+ROUND(F95,2)+ROUND(F97,2)+ROUND(F99,2)+ROUND(F101,2)+ROUND(F103,2) -> 32740.46 | G105: =ROUND(D105,2)-ROUND(F105,2) -> 67259.54 | H105: Grand Total | I105: =SUM(I5:I104) -> 11635.71
C106: Match | D106: =ROUND(D6,0)+ROUND(D8,0)+ROUND(D10,0)+ROUND(D12,0)+ROUND(D14,0)+ROUND(D16,0)+ROUND(D18,0)+ROUND(D20,0)+ROUND(D22,0)+ROUND(D24,0)+ROUND(D26,0)+ROUND(D28,0)+ROUND(D30,0)+ROUND(D32,0)+ROUND(D34,0)+ROUND(D36,0)+ROUND(D38,0)+ROUND(D40,0)+ROUND(D42,0)+ROUND(D44,0)+ROUND(D46,0)+ROUND(D48,0)+ROUND(D50,0)+ROUND(D52,0)+ROUND(D54,0)+ROUND(D56,0)+ROUND(D58,0)+ROUND(D60,0)+ROUND(D62,0)+ROUND(D64,0)+ROUND(D66,0)+ROUND(D68,0)+ROUND(D70,0)+ROUND(D72,0)+ROUND(D74,0)+ROUND(D76,0)+ROUND(D78,0)+ROUND(D80,0)+ROUND(D82,0)+ROUND(D84,0)+ROUND(D86,0)+ROUND(D88,0)+ROUND(D90,0)+ROUND(D92,0)+ROUND(D94,0)+ROUND(D96,0)+ROUND(D98,0)+ROUND(D100,0)+ROUND(D102,0)+ROUND(D104,0) -> 70000 | E106: =ROUND(E6,2)+ROUND(E8,2)+ROUND(E10,2)+ROUND(E12,2)+ROUND(E14,2)+ROUND(E16,2)+ROUND(E18,2)+ROUND(E20,2)+ROUND(E22,2)+ROUND(E24,2)+ROUND(E26,2)+ROUND(E28,2)+ROUND(E30,2)+ROUND(E32,2)+ROUND(E34,2)+ROUND(E36,2)+ROUND(E38,2)+ROUND(E40,2)+ROUND(E42,2)+ROUND(E44,2)+ROUND(E46,2)+ROUND(E48,2)+ROUND(E50,2)+ROUND(E52,2)+ROUND(E54,2)+ROUND(E56,2)+ROUND(E58,2)+ROUND(E60,2)+ROUND(E62,2)+ROUND(E64,2)+ROUND(E66,2)+ROUND(E68,2)+ROUND(E70,2)+ROUND(E72,2)+ROUND(E74,2)+ROUND(E76,2)+ROUND(E78,2)+ROUND(E80,2)+ROUND(E82,2)+ROUND(E84,2)+ROUND(E86,2)+ROUND(E88,2)+ROUND(E90,2)+ROUND(E92,2)+ROUND(E94,2)+ROUND(E96,2)+ROUND(E98,2)+ROUND(E100,2)+ROUND(E102,2)+ROUND(E104,2) -> 13405.04 | F106: =ROUND(F6,2)+ROUND(F8,2)+ROUND(F10,2)+ROUND(F12,2)+ROUND(F14,2)+ROUND(F16,2)+ROUND(F18,2)+ROUND(F20,2)+ROUND(F22,2)+ROUND(F24,2)+ROUND(F26,2)+ROUND(F28,2)+ROUND(F30,2)+ROUND(F32,2)+ROUND(F34,2)+ROUND(F36,2)+ROUND(F38,2)+ROUND(F40,2)+ROUND(F42,2)+ROUND(F44,2)+ROUND(F46,2)+ROUND(F48,2)+ROUND(F50,2)+ROUND(F52,2)+ROUND(F54,2)+ROUND(F56,2)+ROUND(F58,2)+ROUND(F60,2)+ROUND(F62,2)+ROUND(F64,2)+ROUND(F66,2)+ROUND(F68,2)+ROUND(F70,2)+ROUND(F72,2)+ROUND(F74,2)+ROUND(F76,2)+ROUND(F78,2)+ROUND(F80,2)+ROUND(F82,2)+ROUND(F84,2)+ROUND(F86,2)+ROUND(F88,2)+ROUND(F90,2)+ROUND(F92,2)+ROUND(F94,2)+ROUND(F96,2)+ROUND(F98,2)+ROUND(F100,2)+ROUND(F102,2)+ROUND(F104,2) -> 17669.85 | G106: =ROUND(D106,2)-ROUND(F106,2) -> 52330.15
A108: Vendors Summary
A109: Budget Worksheet Reference ID | B109: Vendor Name | C109: Funding Category | D109: Vendor Agreement Budget | E109: Vendor Expenses This Period | F109: Vendor Cumulative Spent to Date | G109: Vendor Balance
A110: V-1 | B110: Alpha Security, Inc. | C110: CEC | D110: 1000 | E110: 982.36 | F110: 0 | G110: =ROUND(D110,2)-ROUND(F110,2) -> 1000
C111: Match | D111: 1000 | E111: 893.79 | F111: 0 | G111: =ROUND(D111,2)-ROUND(F111,2) -> 1000
B112: Vendor 2 | C112: CEC | D112: 0 | E112: 0 | F112: 0 | G112: 0
C113: Match | D113: 0 | E113: 0 | F113: 0 | G113: 0
B114: Vendor 3 | C114: CEC | D114: 0 | E114: 0 | F114: 0 | G114: 0
C115: Match | D115: 0 | E115: 0 | F115: 0 | G115: 0
B116: Vendor 4 | C116: CEC | D116: 0 | E116: 0 | F116: 0 | G116: 0
C117: Match | D117: 0 | E117: 0 | F117: 0 | G117: 0
B118: Vendor 5 | C118: CEC | D118: 0 | E118: 0 | F118: 0 | G118: 0
C119: Match | D119: 0 | E119: 0 | F119: 0 | G119: 0
B120: Vendor 6 | C120: CEC | D120: 0 | E120: 0 | F120: 0 | G120: 0
C121: Match | D121: 0 | E121: 0 | F121: 0 | G121: 0
B122: Vendor 7 | C122: CEC | D122: 0 | E122: 0 | F122: 0 | G122: 0
C123: Match | D123: 0 | E123: 0 | F123: 0 | G123: =ROUND(D123,2)-ROUND(F123,2) -> 0
B124: Vendor 8 | C124: CEC | D124: 0 | E124: 0 | F124: 0 | G124: 0
C125: Match | D125: 0 | E125: 0 | F125: 0 | G125: 0
B126: Vendor 9 | C126: CEC | D126: 0 | E126: 0 | F126: 0 | G126: 0
C127: Match | D127: 0 | E127: 0 | F127: 0 | G127: 0
B128: Vendor 10 | C128: CEC | D128: 0 | E128: 0 | F128: 0 | G128: 0
C129: Match | D129: 0 | E129: 0 | F129: 0 | G129: 0
B130: Vendor 11 | C130: CEC | D130: 0 | E130: 0 | F130: 0 | G130: 0
C131: Match | D131: 0 | E131: 0 | F131: 0 | G131: 0
B132: Vendor 12 | C132: CEC | D132: 0 | E132: 0 | F132: 0 | G132: 0
C133: Match | D133: 0 | E133: 0 | F133: 0 | G133: 0
B134: Vendor 13 | C134: CEC | D134: 0 | E134: 0 | F134: 0 | G134: 0
C135: Match | D135: 0 | E135: 0 | F135: 0 | G135: 0
B136: Vendor 14 | C136: CEC | D136: 0 | E136: 0 | F136: 0 | G136: 0
C137: Match | D137: 0 | E137: 0 | F137: 0 | G137: 0
B138: Vendor 15 | C138: CEC | D138: 0 | E138: 0 | F138: 0 | G138: 0
C139: Match | D139: 0 | E139: 0 | F139: 0 | G139: 0
B140: Vendor 16 | C140: CEC | D140: 0 | E140: 0 | F140: 0 | G140: 0
C141: Match | D141: 0 | E141: 0 | F141: 0 | G141: 0
B142: Vendor 17 | C142: CEC | D142: 0 | E142: 0 | F142: 0 | G142: 0
C143: Match | D143: 0 | E143: 0 | F143: 0 | G143: 0
B144: Vendor 18 | C144: CEC | D144: 0 | E144: 0 | F144: 0 | G144: 0
C145: Match | D145: 0 | E145: 0 | F145: 0 | G145: 0
B146: Vendor 19 | C146: CEC | D146: 0 | E146: 0 | F146: 0 | G146: 0
C147: Match | D147: 0 | E147: 0 | F147: 0 | G147: 0
B148: Vendor 20 | C148: CEC | D148: 0 | E148: 0 | F148: 0 | G148: 0
C149: Match | D149: 0 | E149: 0 | F149: 0 | G149: 0
B150: Vendor 21 | C150: CEC | D150: 0 | E150: 0 | F150: 0 | G150: 0
C151: Match | D151: 0 | E151: 0 | F151: 0 | G151: 0
B152: Vendor 22 | C152: CEC | D152: 0 | E152: 0 | F152: 0 | G152: 0
C153: Match | D153: 0 | E153: 0 | F153: 0 | G153: 0
B154: Vendor 23 | C154: CEC | D154: 0 | E154: 0 | F154: 0 | G154: 0
C155: Match | D155: 0 | E155: 0 | F155: 0 | G155: 0
B156: Vendor 24 | C156: CEC | D156: 0 | E156: 0 | F156: 0 | G156: 0
C157: Match | D157: 0 | E157: 0 | F157: 0 | G157: 0
B158: Vendor 25 | C158: CEC | D158: 0 | E158: 0 | F158: 0 | G158: 0
C159: Match | D159: 0 | E159: 0 | F159: 0 | G159: 0
B160: Vendor 26 | C160: CEC | D160: 0 | E160: 0 | F160: 0 | G160: 0
C161: Match | D161: 0 | E161: 0 | F161: 0 | G161: 0
B162: Vendor 27 | C162: CEC | D162: 0 | E162: 0 | F162: 0 | G162: 0
C163: Match | D163: 0 | E163: 0 | F163: 0 | G163: 0
B164: Vendor 28 | C164: CEC | D164: 0 | E164: 0 | F164: 0 | G164: 0
C165: Match | D165: 0 | E165: 0 | F165: 0 | G165: 0
B166: Vendor 29 | C166: CEC | D166: 0 | E166: 0 | F166: 0 | G166: 0
C167: Match | D167: 0 | E167: 0 | F167: 0 | G167: 0
B168: Vendor 30 | C168: CEC | D168: 0 | E168: 0 | F168: 0 | G168: 0
C169: Match | D169: 0 | E169: 0 | F169: 0 | G169: 0
B170: Vendor 31 | C170: CEC | D170: 0 | E170: 0 | F170: 0 | G170: 0
C171: Match | D171: 0 | E171: 0 | F171: 0 | G171: 0
B172: Vendor 32 | C172: CEC | D172: 0 | E172: 0 | F172: 0 | G172: 0
C173: Match | D173: 0 | E173: 0 | F173: 0 | G173: 0
B174: Vendor 33 | C174: CEC | D174: 0 | E174: 0 | F174: 0 | G174: 0
C175: Match | D175: 0 | E175: 0 | F175: 0 | G175: 0
B176: Vendor 34 | C176: CEC | D176: 0 | E176: 0 | F176: 0 | G176: 0
C177: Match | D177: 0 | E177: 0 | F177: 0 | G177: 0
B178: Vendor 35 | C178: CEC | D178: 0 | E178: 0 | F178: 0 | G178: 0
C179: Match | D179: 0 | E179: 0 | F179: 0 | G179: 0
B180: Vendor 36 | C180: CEC | D180: 0 | E180: 0 | F180: 0 | G180: 0
C181: Match | D181: 0 | E181: 0 | F181: 0 | G181: 0
B182: Vendor 37 | C182: CEC | D182: 0 | E182: 0 | F182: 0 | G182: 0
C183: Match | D183: 0 | E183: 0 | F183: 0 | G183: 0
B184: Vendor 38 | C184: CEC | D184: 0 | E184: 0 | F184: 0 | G184: 0
C185: Match | D185: 0 | E185: 0 | F185: 0 | G185: 0
B186: Vendor 39 | C186: CEC | D186: 0 | E186: 0 | F186: 0 | G186: 0
C187: Match | D187: 0 | E187: 0 | F187: 0 | G187: 0
B188: Vendor 40 | C188: CEC | D188: 0 | E188: 0 | F188: 0 | G188: 0
C189: Match | D189: 0 | E189: 0 | F189: 0 | G189: 0
B190: Vendor 41 | C190: CEC | D190: 0 | E190: 0 | F190: 0 | G190: 0
C191: Match | D191: 0 | E191: 0 | F191: 0 | G191: 0
B192: Vendor 42 | C192: CEC | D192: 0 | E192: 0 | F192: 0 | G192: 0
C193: Match | D193: 0 | E193: 0 | F193: 0 | G193: 0
B194: Vendor 43 | C194: CEC | D194: 0 | E194: 0 | F194: 0 | G194: 0
C195: Match | D195: 0 | E195: 0 | F195: 0 | G195: 0
B196: Vendor 44 | C196: CEC | D196: 0 | E196: 0 | F196: 0 | G196: 0
C197: Match | D197: 0 | E197: 0 | F197: 0 | G197: 0
B198: Vendor 45 | C198: CEC | D198: 0 | E198: 0 | F198: 0 | G198: 0
C199: Match | D199: 0 | E199: 0 | F199: 0 | G199: 0
B200: Vendor 46 | C200: CEC | D200: 0 | E200: 0 | F200: 0 | G200: 0
C201: Match | D201: 0 | E201: 0 | F201: 0 | G201: 0
... 14 more rows

Sheet Lists (hidden)
A1: Retention Method Selection
A2: Select a Retention Method
A3: Retention will be withheld at the end of the agreement (minus exempt subrecipients)
A4: Retention will be withheld from each invoice (minus exempt subrecipients)
A5: Retention is NOT required to be withheld for this agreement
A7: End of Agreement Retention Method Situation
A8: If Applicable: Select End of Agreement Retention Method Situation
A9: 90.00%, or less, of CEC funds spent to date (minus exempt subrecipients), including this invoice
A10: With this invoice, percentage of CEC funds spent (minus exempt subrecipients) will transition from less than to greater than 90.00% [manually enter required retention amount below]
A11: More than 90.00% of CEC funds spent to date (minus exempt subrecipients), including this entire invoice
A13: Invoice Selection
A14: Select Yes or No
A15: Yes
A16: No
A17: Subrecipient Exempt from Retention Selection
A18: Select Yes or No
A19: Yes
A20: No
